{"text_format":"1","workbook":"xlsx","n_sheets":2,"sheets":["Formulaires de saisie","Dossiers"],"not_rendered":{"charts":0,"images":1,"macros":1,"external_links":0,"defined_names":0,"comments":0,"pivot_tables":0},"unopened":[],"bounds":{"document_bytes":16777216,"sheet_cells":100000,"rows_first":2000,"rows_last":500,"rows_between":2000,"halvings":0,"cell_chars":16384,"cell_head_chars":4096},"cells_cut":0,"cells_raw":0,"read":"whole","date_system":"1900"}

{"sheet":"Formulaires de saisie","index":0,"n_rows":1,"n_cols":20,"rows_kept":1,"cut":false,"hidden":false,"merged":[[0,0,22,15]]}
[null,null,null,null,null,null,null,null,null,null,null,null,null,null,null,null,null,null,null,"http://forum.excel-pratique.com/excel/mettre-en-couleur-une-case-specifique-dans-une-listview-t52136.html"]

{"sheet":"Dossiers","index":1,"n_rows":2763,"n_cols":7,"rows_kept":2763,"cut":false,"hidden":false,"merged":[]}
["N° de dossier","Date de traitement","Metteur à jour","Adresse du chantier","Code GDO Tronçon câble BT du rattachement","Annotation","Délai"]
[1,"2014-01-02","moi","mmmmmm","mmmmmm",{"$f":"IF(G2>=15,\"HORS DELAI\",\"\")","v":"HORS DELAI"},{"$f":"TODAY()-B2","v":3024}]
[2,"2014-01-03","moi","mmmmmm","mmmmmm","HORS DELAI",3023]
[3,"2014-01-04","moi","mmmmmm","mmmmmm","HORS DELAI",3022]
[4,"2014-01-05","moi","mmmmmm","mmmmmm","HORS DELAI",3021]
[5,"2014-01-06","moi","mmmmmm","mmmmmm","HORS DELAI",3020]
[6,"2014-01-07","moi","mmmmmm","mmmmmm","HORS DELAI",3019]
[7,"2014-01-08","moi","mmmmmm","mmmmmm","HORS DELAI",3018]
[8,"2014-01-09","moi","mmmmmm","mmmmmm","HORS DELAI",3017]
[9,"2014-01-10","moi","mmmmmm","mmmmmm","HORS DELAI",3016]
[10,"2014-01-11","moi","mmmmmm","mmmmmm","HORS DELAI",3015]
[11,"2014-01-12","moi","mmmmmm","mmmmmm","HORS DELAI",3014]
[12,"2014-01-13","moi","mmmmmm","mmmmmm","HORS DELAI",3013]
[13,"2014-01-14","moi","mmmmmm","mmmmmm","HORS DELAI",3012]
[14,"2014-01-15","moi","mmmmmm","mmmmmm","HORS DELAI",3011]
[15,"2014-01-16","moi","mmmmmm","mmmmmm","HORS DELAI",3010]
[16,"2014-01-17","moi","mmmmmm","mmmmmm","HORS DELAI",3009]
[17,"2014-01-18","moi","mmmmmm","mmmmmm","HORS DELAI",3008]
[18,"2014-01-19","moi","mmmmmm","mmmmmm","HORS DELAI",3007]
[19,"2014-01-20","moi","mmmmmm","mmmmmm","HORS DELAI",3006]
[20,"2014-01-21","moi","mmmmmm","mmmmmm","HORS DELAI",3005]
[21,"2014-01-22","moi","mmmmmm","mmmmmm","HORS DELAI",3004]
[22,"2014-01-23","moi","mmmmmm","mmmmmm","HORS DELAI",3003]
[23,"2014-01-24","moi","mmmmmm","mmmmmm","HORS DELAI",3002]
[24,"2014-01-25","moi","mmmmmm","mmmmmm","HORS DELAI",3001]
[25,"2014-01-26","moi","mmmmmm","mmmmmm","HORS DELAI",3000]
[26,"2014-01-27","moi","mmmmmm","mmmmmm","HORS DELAI",2999]
[27,"2014-01-28","moi","mmmmmm","mmmmmm","HORS DELAI",2998]
[null,"2014-01-29","moi","mmmmmm","mmmmmm","HORS DELAI",2997]
[null,"2014-01-30","moi","mmmmmm","mmmmmm","HORS DELAI",2996]
[null,"2014-01-31","moi","mmmmmm","mmmmmm","HORS DELAI",2995]
[null,"2014-02-01",null,null,null,"HORS DELAI",2994]
[null,"2014-02-02",null,null,null,"HORS DELAI",2993]
[null,"2014-02-03",null,null,null,"HORS DELAI",2992]
[null,"2014-02-04",null,null,null,"HORS DELAI",2991]
[null,"2014-02-05",null,null,null,"HORS DELAI",2990]
[null,"2014-02-06",null,null,null,"HORS DELAI",2989]
[null,"2014-02-07",null,null,null,"HORS DELAI",2988]
[null,"2014-02-08",null,null,null,"HORS DELAI",2987]
[null,"2014-02-09",null,null,null,"HORS DELAI",2986]
[null,"2014-02-10",null,null,null,"HORS DELAI",2985]
[null,"2014-02-11",null,null,null,"HORS DELAI",2984]
[null,"2014-02-12",null,null,null,"HORS DELAI",2983]
[null,"2014-02-13",null,null,null,"HORS DELAI",2982]
[null,"2014-02-14",null,null,null,"HORS DELAI",2981]
[null,"2014-02-15",null,null,null,"HORS DELAI",2980]
[null,"2014-02-16",null,null,null,"HORS DELAI",2979]
[null,"2014-02-17",null,null,null,"HORS DELAI",2978]
[null,"2014-02-18",null,null,null,"HORS DELAI",2977]
[null,"2014-02-19",null,null,null,"HORS DELAI",2976]
[null,"2014-02-20",null,null,null,"HORS DELAI",2975]
[null,"2014-02-21",null,null,null,"HORS DELAI",2974]
[null,"2014-02-22",null,null,null,"HORS DELAI",2973]
[null,"2014-02-23",null,null,null,"HORS DELAI",2972]
[null,"2014-02-24",null,null,null,"HORS DELAI",2971]
[null,"2014-02-25",null,null,null,"HORS DELAI",2970]
[null,"2014-02-26",null,null,null,"HORS DELAI",2969]
[null,"2014-02-27",null,null,null,"HORS DELAI",2968]
[null,"2014-02-28",null,null,null,"HORS DELAI",2967]
[null,"2014-03-01",null,null,null,"HORS DELAI",2966]
[null,null,null,null,null,"HORS DELAI",44665]
[null,null,null,null,null,"HORS DELAI",44665]
[null,null,null,null,null,"HORS DELAI",44665]
[null,null,null,null,null,"HORS DELAI",44665]
[null,null,null,null,null,"HORS DELAI",44665]
[null,null,null,null,null,{"$f":"IF(G66>=15,\"HORS DELAI\",\"\")","v":"HORS DELAI"},{"$f":"TODAY()-B66","v":44665}]
[null,null,null,null,null,"HORS DELAI",44665]
[null,null,null,null,null,"HORS DELAI",44665]
[null,null,null,null,null,"HORS DELAI",44665]
[null,null,null,null,null,"HORS DELAI",44665]
[null,null,null,null,null,"HORS DELAI",44665]
[null,null,null,null,null,"HORS DELAI",44665]
[null,null,null,null,null,"HORS DELAI",44665]
[null,null,null,null,null,"HORS DELAI",44665]
[null,null,null,null,null,"HORS DELAI",44665]
[null,null,null,null,null,"HORS DELAI",44665]
[null,null,null,null,null,"HORS DELAI",44665]
[null,null,null,null,null,"HORS DELAI",44665]
[null,null,null,null,null,"HORS DELAI",44665]
[null,null,null,null,null,"HORS DELAI",44665]
[null,null,null,null,null,"HORS DELAI",44665]
[null,null,null,null,null,"HORS DELAI",44665]
[null,null,null,null,null,"HORS DELAI",44665]
[null,null,null,null,null,"HORS DELAI",44665]
[null,null,null,null,null,"HORS DELAI",44665]
[null,null,null,null,null,"HORS DELAI",44665]
[null,null,null,null,null,"HORS DELAI",44665]
[null,null,null,null,null,"HORS DELAI",44665]
[null,null,null,null,null,"HORS DELAI",44665]
[null,null,null,null,null,"HORS DELAI",44665]
[null,null,null,null,null,"HORS DELAI",44665]
[null,null,null,null,null,"HORS DELAI",44665]
[null,null,null,null,null,"HORS DELAI",44665]
[null,null,null,null,null,"HORS DELAI",44665]
[null,null,null,null,null,"HORS DELAI",44665]
[null,null,null,null,null,"HORS DELAI",44665]
[null,null,null,null,null,"HORS DELAI",44665]
[null,null,null,null,null,"HORS DELAI",44665]
[null,null,null,null,null,"HORS DELAI",44665]
[null,null,null,null,null,"HORS DELAI",44665]
[null,null,null,null,null,"HORS DELAI",44665]
[null,null,null,null,null,"HORS DELAI",44665]
[null,null,null,null,null,"HORS DELAI",44665]
[null,null,null,null,null,"HORS DELAI",44665]
[null,null,null,null,null,"HORS DELAI",44665]
[null,null,null,null,null,"HORS DELAI",44665]
[null,null,null,null,null,"HORS DELAI",44665]
[null,null,null,null,null,"HORS DELAI",44665]
[null,null,null,null,null,"HORS DELAI",44665]
[null,null,null,null,null,"HORS DELAI",44665]
[null,null,null,null,null,"HORS DELAI",44665]
[null,null,null,null,null,"HORS DELAI",44665]
[null,null,null,null,null,"HORS DELAI",44665]
[null,null,null,null,null,"HORS DELAI",44665]
[null,null,null,null,null,"HORS DELAI",44665]
[null,null,null,null,null,"HORS DELAI",44665]
[null,null,null,null,null,"HORS DELAI",44665]
[null,null,null,null,null,"HORS DELAI",44665]
[null,null,null,null,null,"HORS DELAI",44665]
[null,null,null,null,null,"HORS DELAI",44665]
[null,null,null,null,null,"HORS DELAI",44665]
[null,null,null,null,null,"HORS DELAI",44665]
[null,null,null,null,null,"HORS DELAI",44665]
[null,null,null,null,null,"HORS DELAI",44665]
[null,null,null,null,null,"HORS DELAI",44665]
[null,null,null,null,null,"HORS DELAI",44665]
[null,null,null,null,null,"HORS DELAI",44665]
[null,null,null,null,null,"HORS DELAI",44665]
[null,null,null,null,null,"HORS DELAI",44665]
[null,null,null,null,null,{"$f":"IF(G130>=15,\"HORS DELAI\",\"\")","v":"HORS DELAI"},{"$f":"TODAY()-B130","v":44665}]
[null,null,null,null,null,"HORS DELAI",44665]
[null,null,null,null,null,"HORS DELAI",44665]
[null,null,null,null,null,"HORS DELAI",44665]
[null,null,null,null,null,"HORS DELAI",44665]
[null,null,null,null,null,"HORS DELAI",44665]
[null,null,null,null,null,"HORS DELAI",44665]
[null,null,null,null,null,"HORS DELAI",44665]
[null,null,null,null,null,"HORS DELAI",44665]
[null,null,null,null,null,"HORS DELAI",44665]
[null,null,null,null,null,"HORS DELAI",44665]
[null,null,null,null,null,"HORS DELAI",44665]
[null,null,null,null,null,"HORS DELAI",44665]
[null,null,null,null,null,"HORS DELAI",44665]
[null,null,null,null,null,"HORS DELAI",44665]
[null,null,null,null,null,"HORS DELAI",44665]
[null,null,null,null,null,"HORS DELAI",44665]
[null,null,null,null,null,"HORS DELAI",44665]
[null,null,null,null,null,"HORS DELAI",44665]
[null,null,null,null,null,"HORS DELAI",44665]
[null,null,null,null,null,"HORS DELAI",44665]
[null,null,null,null,null,"HORS DELAI",44665]
[null,null,null,null,null,"HORS DELAI",44665]
[null,null,null,null,null,"HORS DELAI",44665]
[null,null,null,null,null,"HORS DELAI",44665]
[null,null,null,null,null,"HORS DELAI",44665]
[null,null,null,null,null,"HORS DELAI",44665]
[null,null,null,null,null,"HORS DELAI",44665]
[null,null,null,null,null,"HORS DELAI",44665]
[null,null,null,null,null,"HORS DELAI",44665]
[null,null,null,null,null,"HORS DELAI",44665]
[null,null,null,null,null,"HORS DELAI",44665]
[null,null,null,null,null,"HORS DELAI",44665]
[null,null,null,null,null,"HORS DELAI",44665]
[null,null,null,null,null,"HORS DELAI",44665]
[null,null,null,null,null,"HORS DELAI",44665]
[null,null,null,null,null,"HORS DELAI",44665]
[null,null,null,null,null,"HORS DELAI",44665]
[null,null,null,null,null,"HORS DELAI",44665]
[null,null,null,null,null,"HORS DELAI",44665]
[null,null,null,null,null,"HORS DELAI",44665]
[null,null,null,null,null,"HORS DELAI",44665]
[null,null,null,null,null,"HORS DELAI",44665]
[null,null,null,null,null,"HORS DELAI",44665]
[null,null,null,null,null,"HORS DELAI",44665]
[null,null,null,null,null,"HORS DELAI",44665]
[null,null,null,null,null,"HORS DELAI",44665]
[null,null,null,null,null,"HORS DELAI",44665]
[null,null,null,null,null,"HORS DELAI",44665]
[null,null,null,null,null,"HORS DELAI",44665]
[null,null,null,null,null,"HORS DELAI",44665]
[null,null,null,null,null,"HORS DELAI",44665]
[null,null,null,null,null,"HORS DELAI",44665]
[null,null,null,null,null,"HORS DELAI",44665]
[null,null,null,null,null,"HORS DELAI",44665]
[null,null,null,null,null,"HORS DELAI",44665]
[null,null,null,null,null,"HORS DELAI",44665]
[null,null,null,null,null,"HORS DELAI",44665]
[null,null,null,null,null,"HORS DELAI",44665]
[null,null,null,null,null,"HORS DELAI",44665]
[null,null,null,null,null,"HORS DELAI",44665]
[null,null,null,null,null,"HORS DELAI",44665]
[null,null,null,null,null,"HORS DELAI",44665]
[null,null,null,null,null,"HORS DELAI",44665]
[null,null,null,null,null,{"$f":"IF(G194>=15,\"HORS DELAI\",\"\")","v":"HORS DELAI"},{"$f":"TODAY()-B194","v":44665}]
[null,null,null,null,null,"HORS DELAI",44665]
[null,null,null,null,null,"HORS DELAI",44665]
[null,null,null,null,null,"HORS DELAI",44665]
[null,null,null,null,null,"HORS DELAI",44665]
[null,null,null,null,null,"HORS DELAI",44665]
[null,null,null,null,null,"HORS DELAI",44665]
[null,null,null,null,null,"HORS DELAI",44665]
[null,null,null,null,null,"HORS DELAI",44665]
[null,null,null,null,null,"HORS DELAI",44665]
[null,null,null,null,null,"HORS DELAI",44665]
[null,null,null,null,null,"HORS DELAI",44665]
[null,null,null,null,null,"HORS DELAI",44665]
[null,null,null,null,null,"HORS DELAI",44665]
[null,null,null,null,null,"HORS DELAI",44665]
[null,null,null,null,null,"HORS DELAI",44665]
[null,null,null,null,null,"HORS DELAI",44665]
[null,null,null,null,null,"HORS DELAI",44665]
[null,null,null,null,null,"HORS DELAI",44665]
[null,null,null,null,null,"HORS DELAI",44665]
[null,null,null,null,null,"HORS DELAI",44665]
[null,null,null,null,null,"HORS DELAI",44665]
[null,null,null,null,null,"HORS DELAI",44665]
[null,null,null,null,null,"HORS DELAI",44665]
[null,null,null,null,null,"HORS DELAI",44665]
[null,null,null,null,null,"HORS DELAI",44665]
[null,null,null,null,null,"HORS DELAI",44665]
[null,null,null,null,null,"HORS DELAI",44665]
[null,null,null,null,null,"HORS DELAI",44665]
[null,null,null,null,null,"HORS DELAI",44665]
[null,null,null,null,null,"HORS DELAI",44665]
[null,null,null,null,null,"HORS DELAI",44665]
[null,null,null,null,null,"HORS DELAI",44665]
[null,null,null,null,null,"HORS DELAI",44665]
[null,null,null,null,null,"HORS DELAI",44665]
[null,null,null,null,null,"HORS DELAI",44665]
[null,null,null,null,null,"HORS DELAI",44665]
[null,null,null,null,null,"HORS DELAI",44665]
[null,null,null,null,null,"HORS DELAI",44665]
[null,null,null,null,null,"HORS DELAI",44665]
[null,null,null,null,null,"HORS DELAI",44665]
[null,null,null,null,null,"HORS DELAI",44665]
[null,null,null,null,null,"HORS DELAI",44665]
[null,null,null,null,null,"HORS DELAI",44665]
[null,null,null,null,null,"HORS DELAI",44665]
[null,null,null,null,null,"HORS DELAI",44665]
[null,null,null,null,null,"HORS DELAI",44665]
[null,null,null,null,null,"HORS DELAI",44665]
[null,null,null,null,null,"HORS DELAI",44665]
[null,null,null,null,null,"HORS DELAI",44665]
[null,null,null,null,null,"HORS DELAI",44665]
[null,null,null,null,null,"HORS DELAI",44665]
[null,null,null,null,null,"HORS DELAI",44665]
[null,null,null,null,null,"HORS DELAI",44665]
[null,null,null,null,null,"HORS DELAI",44665]
[null,null,null,null,null,"HORS DELAI",44665]
[null,null,null,null,null,"HORS DELAI",44665]
[null,null,null,null,null,"HORS DELAI",44665]
[null,null,null,null,null,"HORS DELAI",44665]
[null,null,null,null,null,"HORS DELAI",44665]
[null,null,null,null,null,"HORS DELAI",44665]
[null,null,null,null,null,"HORS DELAI",44665]
[null,null,null,null,null,"HORS DELAI",44665]
[null,null,null,null,null,"HORS DELAI",44665]
[null,null,null,null,null,{"$f":"IF(G258>=15,\"HORS DELAI\",\"\")","v":"HORS DELAI"},{"$f":"TODAY()-B258","v":44665}]
[null,null,null,null,null,"HORS DELAI",44665]
[null,null,null,null,null,"HORS DELAI",44665]
[null,null,null,null,null,"HORS DELAI",44665]
[null,null,null,null,null,"HORS DELAI",44665]
[null,null,null,null,null,"HORS DELAI",44665]
[null,null,null,null,null,"HORS DELAI",44665]
[null,null,null,null,null,"HORS DELAI",44665]
[null,null,null,null,null,"HORS DELAI",44665]
[null,null,null,null,null,"HORS DELAI",44665]
[null,null,null,null,null,"HORS DELAI",44665]
[null,null,null,null,null,"HORS DELAI",44665]
[null,null,null,null,null,"HORS DELAI",44665]
[null,null,null,null,null,"HORS DELAI",44665]
[null,null,null,null,null,"HORS DELAI",44665]
[null,null,null,null,null,"HORS DELAI",44665]
[null,null,null,null,null,"HORS DELAI",44665]
[null,null,null,null,null,"HORS DELAI",44665]
[null,null,null,null,null,"HORS DELAI",44665]
[null,null,null,null,null,"HORS DELAI",44665]
[null,null,null,null,null,"HORS DELAI",44665]
[null,null,null,null,null,"HORS DELAI",44665]
[null,null,null,null,null,"HORS DELAI",44665]
[null,null,null,null,null,"HORS DELAI",44665]
[null,null,null,null,null,"HORS DELAI",44665]
[null,null,null,null,null,"HORS DELAI",44665]
[null,null,null,null,null,"HORS DELAI",44665]
[null,null,null,null,null,"HORS DELAI",44665]
[null,null,null,null,null,"HORS DELAI",44665]
[null,null,null,null,null,"HORS DELAI",44665]
[null,null,null,null,null,"HORS DELAI",44665]
[null,null,null,null,null,"HORS DELAI",44665]
[null,null,null,null,null,"HORS DELAI",44665]
[null,null,null,null,null,"HORS DELAI",44665]
[null,null,null,null,null,"HORS DELAI",44665]
[null,null,null,null,null,"HORS DELAI",44665]
[null,null,null,null,null,"HORS DELAI",44665]
[null,null,null,null,null,"HORS DELAI",44665]
[null,null,null,null,null,"HORS DELAI",44665]
[null,null,null,null,null,"HORS DELAI",44665]
[null,null,null,null,null,"HORS DELAI",44665]
[null,null,null,null,null,"HORS DELAI",44665]
[null,null,null,null,null,"HORS DELAI",44665]
[null,null,null,null,null,"HORS DELAI",44665]
[null,null,null,null,null,"HORS DELAI",44665]
[null,null,null,null,null,"HORS DELAI",44665]
[null,null,null,null,null,"HORS DELAI",44665]
[null,null,null,null,null,"HORS DELAI",44665]
[null,null,null,null,null,"HORS DELAI",44665]
[null,null,null,null,null,"HORS DELAI",44665]
[null,null,null,null,null,"HORS DELAI",44665]
[null,null,null,null,null,"HORS DELAI",44665]
[null,null,null,null,null,"HORS DELAI",44665]
[null,null,null,null,null,"HORS DELAI",44665]
[null,null,null,null,null,"HORS DELAI",44665]
[null,null,null,null,null,"HORS DELAI",44665]
[null,null,null,null,null,"HORS DELAI",44665]
[null,null,null,null,null,"HORS DELAI",44665]
[null,null,null,null,null,"HORS DELAI",44665]
[null,null,null,null,null,"HORS DELAI",44665]
[null,null,null,null,null,"HORS DELAI",44665]
[null,null,null,null,null,"HORS DELAI",44665]
[null,null,null,null,null,"HORS DELAI",44665]
[null,null,null,null,null,"HORS DELAI",44665]
[null,null,null,null,null,{"$f":"IF(G322>=15,\"HORS DELAI\",\"\")","v":"HORS DELAI"},{"$f":"TODAY()-B322","v":44665}]
[null,null,null,null,null,"HORS DELAI",44665]
[null,null,null,null,null,"HORS DELAI",44665]
[null,null,null,null,null,"HORS DELAI",44665]
[null,null,null,null,null,"HORS DELAI",44665]
[null,null,null,null,null,"HORS DELAI",44665]
[null,null,null,null,null,"HORS DELAI",44665]
[null,null,null,null,null,"HORS DELAI",44665]
[null,null,null,null,null,"HORS DELAI",44665]
[null,null,null,null,null,"HORS DELAI",44665]
[null,null,null,null,null,"HORS DELAI",44665]
[null,null,null,null,null,"HORS DELAI",44665]
[null,null,null,null,null,"HORS DELAI",44665]
[null,null,null,null,null,"HORS DELAI",44665]
[null,null,null,null,null,"HORS DELAI",44665]
[null,null,null,null,null,"HORS DELAI",44665]
[null,null,null,null,null,"HORS DELAI",44665]
[null,null,null,null,null,"HORS DELAI",44665]
[null,null,null,null,null,"HORS DELAI",44665]
[null,null,null,null,null,"HORS DELAI",44665]
[null,null,null,null,null,"HORS DELAI",44665]
[null,null,null,null,null,"HORS DELAI",44665]
[null,null,null,null,null,"HORS DELAI",44665]
[null,null,null,null,null,"HORS DELAI",44665]
[null,null,null,null,null,"HORS DELAI",44665]
[null,null,null,null,null,"HORS DELAI",44665]
[null,null,null,null,null,"HORS DELAI",44665]
[null,null,null,null,null,"HORS DELAI",44665]
[null,null,null,null,null,"HORS DELAI",44665]
[null,null,null,null,null,"HORS DELAI",44665]
[null,null,null,null,null,"HORS DELAI",44665]
[null,null,null,null,null,"HORS DELAI",44665]
[null,null,null,null,null,"HORS DELAI",44665]
[null,null,null,null,null,"HORS DELAI",44665]
[null,null,null,null,null,"HORS DELAI",44665]
[null,null,null,null,null,"HORS DELAI",44665]
[null,null,null,null,null,"HORS DELAI",44665]
[null,null,null,null,null,"HORS DELAI",44665]
[null,null,null,null,null,"HORS DELAI",44665]
[null,null,null,null,null,"HORS DELAI",44665]
[null,null,null,null,null,"HORS DELAI",44665]
[null,null,null,null,null,"HORS DELAI",44665]
[null,null,null,null,null,"HORS DELAI",44665]
[null,null,null,null,null,"HORS DELAI",44665]
[null,null,null,null,null,"HORS DELAI",44665]
[null,null,null,null,null,"HORS DELAI",44665]
[null,null,null,null,null,"HORS DELAI",44665]
[null,null,null,null,null,"HORS DELAI",44665]
[null,null,null,null,null,"HORS DELAI",44665]
[null,null,null,null,null,"HORS DELAI",44665]
[null,null,null,null,null,"HORS DELAI",44665]
[null,null,null,null,null,"HORS DELAI",44665]
[null,null,null,null,null,"HORS DELAI",44665]
[null,null,null,null,null,"HORS DELAI",44665]
[null,null,null,null,null,"HORS DELAI",44665]
[null,null,null,null,null,"HORS DELAI",44665]
[null,null,null,null,null,"HORS DELAI",44665]
[null,null,null,null,null,"HORS DELAI",44665]
[null,null,null,null,null,"HORS DELAI",44665]
[null,null,null,null,null,"HORS DELAI",44665]
[null,null,null,null,null,"HORS DELAI",44665]
[null,null,null,null,null,"HORS DELAI",44665]
[null,null,null,null,null,"HORS DELAI",44665]
[null,null,null,null,null,"HORS DELAI",44665]
[null,null,null,null,null,{"$f":"IF(G386>=15,\"HORS DELAI\",\"\")","v":"HORS DELAI"},{"$f":"TODAY()-B386","v":44665}]
[null,null,null,null,null,"HORS DELAI",44665]
[null,null,null,null,null,"HORS DELAI",44665]
[null,null,null,null,null,"HORS DELAI",44665]
[null,null,null,null,null,"HORS DELAI",44665]
[null,null,null,null,null,"HORS DELAI",44665]
[null,null,null,null,null,"HORS DELAI",44665]
[null,null,null,null,null,"HORS DELAI",44665]
[null,null,null,null,null,"HORS DELAI",44665]
[null,null,null,null,null,"HORS DELAI",44665]
[null,null,null,null,null,"HORS DELAI",44665]
[null,null,null,null,null,"HORS DELAI",44665]
[null,null,null,null,null,"HORS DELAI",44665]
[null,null,null,null,null,"HORS DELAI",44665]
[null,null,null,null,null,"HORS DELAI",44665]
[null,null,null,null,null,"HORS DELAI",44665]
[null,null,null,null,null,"HORS DELAI",44665]
[null,null,null,null,null,"HORS DELAI",44665]
[null,null,null,null,null,"HORS DELAI",44665]
[null,null,null,null,null,"HORS DELAI",44665]
[null,null,null,null,null,"HORS DELAI",44665]
[null,null,null,null,null,"HORS DELAI",44665]
[null,null,null,null,null,"HORS DELAI",44665]
[null,null,null,null,null,"HORS DELAI",44665]
[null,null,null,null,null,"HORS DELAI",44665]
[null,null,null,null,null,"HORS DELAI",44665]
[null,null,null,null,null,"HORS DELAI",44665]
[null,null,null,null,null,"HORS DELAI",44665]
[null,null,null,null,null,"HORS DELAI",44665]
[null,null,null,null,null,"HORS DELAI",44665]
[null,null,null,null,null,"HORS DELAI",44665]
[null,null,null,null,null,"HORS DELAI",44665]
[null,null,null,null,null,"HORS DELAI",44665]
[null,null,null,null,null,"HORS DELAI",44665]
[null,null,null,null,null,"HORS DELAI",44665]
[null,null,null,null,null,"HORS DELAI",44665]
[null,null,null,null,null,"HORS DELAI",44665]
[null,null,null,null,null,"HORS DELAI",44665]
[null,null,null,null,null,"HORS DELAI",44665]
[null,null,null,null,null,"HORS DELAI",44665]
[null,null,null,null,null,"HORS DELAI",44665]
[null,null,null,null,null,"HORS DELAI",44665]
[null,null,null,null,null,"HORS DELAI",44665]
[null,null,null,null,null,"HORS DELAI",44665]
[null,null,null,null,null,"HORS DELAI",44665]
[null,null,null,null,null,"HORS DELAI",44665]
[null,null,null,null,null,"HORS DELAI",44665]
[null,null,null,null,null,"HORS DELAI",44665]
[null,null,null,null,null,"HORS DELAI",44665]
[null,null,null,null,null,"HORS DELAI",44665]
[null,null,null,null,null,"HORS DELAI",44665]
[null,null,null,null,null,"HORS DELAI",44665]
[null,null,null,null,null,"HORS DELAI",44665]
[null,null,null,null,null,"HORS DELAI",44665]
[null,null,null,null,null,"HORS DELAI",44665]
[null,null,null,null,null,"HORS DELAI",44665]
[null,null,null,null,null,"HORS DELAI",44665]
[null,null,null,null,null,"HORS DELAI",44665]
[null,null,null,null,null,"HORS DELAI",44665]
[null,null,null,null,null,"HORS DELAI",44665]
[null,null,null,null,null,"HORS DELAI",44665]
[null,null,null,null,null,"HORS DELAI",44665]
[null,null,null,null,null,"HORS DELAI",44665]
[null,null,null,null,null,"HORS DELAI",44665]
[null,null,null,null,null,{"$f":"IF(G450>=15,\"HORS DELAI\",\"\")","v":"HORS DELAI"},{"$f":"TODAY()-B450","v":44665}]
[null,null,null,null,null,"HORS DELAI",44665]
[null,null,null,null,null,"HORS DELAI",44665]
[null,null,null,null,null,"HORS DELAI",44665]
[null,null,null,null,null,"HORS DELAI",44665]
[null,null,null,null,null,"HORS DELAI",44665]
[null,null,null,null,null,"HORS DELAI",44665]
[null,null,null,null,null,"HORS DELAI",44665]
[null,null,null,null,null,"HORS DELAI",44665]
[null,null,null,null,null,"HORS DELAI",44665]
[null,null,null,null,null,"HORS DELAI",44665]
[null,null,null,null,null,"HORS DELAI",44665]
[null,null,null,null,null,"HORS DELAI",44665]
[null,null,null,null,null,"HORS DELAI",44665]
[null,null,null,null,null,"HORS DELAI",44665]
[null,null,null,null,null,"HORS DELAI",44665]
[null,null,null,null,null,"HORS DELAI",44665]
[null,null,null,null,null,"HORS DELAI",44665]
[null,null,null,null,null,"HORS DELAI",44665]
[null,null,null,null,null,"HORS DELAI",44665]
[null,null,null,null,null,"HORS DELAI",44665]
[null,null,null,null,null,"HORS DELAI",44665]
[null,null,null,null,null,"HORS DELAI",44665]
[null,null,null,null,null,"HORS DELAI",44665]
[null,null,null,null,null,"HORS DELAI",44665]
[null,null,null,null,null,"HORS DELAI",44665]
[null,null,null,null,null,"HORS DELAI",44665]
[null,null,null,null,null,"HORS DELAI",44665]
[null,null,null,null,null,"HORS DELAI",44665]
[null,null,null,null,null,"HORS DELAI",44665]
[null,null,null,null,null,"HORS DELAI",44665]
[null,null,null,null,null,"HORS DELAI",44665]
[null,null,null,null,null,"HORS DELAI",44665]
[null,null,null,null,null,"HORS DELAI",44665]
[null,null,null,null,null,"HORS DELAI",44665]
[null,null,null,null,null,"HORS DELAI",44665]
[null,null,null,null,null,"HORS DELAI",44665]
[null,null,null,null,null,"HORS DELAI",44665]
[null,null,null,null,null,"HORS DELAI",44665]
[null,null,null,null,null,"HORS DELAI",44665]
[null,null,null,null,null,"HORS DELAI",44665]
[null,null,null,null,null,"HORS DELAI",44665]
[null,null,null,null,null,"HORS DELAI",44665]
[null,null,null,null,null,"HORS DELAI",44665]
[null,null,null,null,null,"HORS DELAI",44665]
[null,null,null,null,null,"HORS DELAI",44665]
[null,null,null,null,null,"HORS DELAI",44665]
[null,null,null,null,null,"HORS DELAI",44665]
[null,null,null,null,null,"HORS DELAI",44665]
[null,null,null,null,null,"HORS DELAI",44665]
[null,null,null,null,null,"HORS DELAI",44665]
[null,null,null,null,null,"HORS DELAI",44665]
[null,null,null,null,null,"HORS DELAI",44665]
[null,null,null,null,null,"HORS DELAI",44665]
[null,null,null,null,null,"HORS DELAI",44665]
[null,null,null,null,null,"HORS DELAI",44665]
[null,null,null,null,null,"HORS DELAI",44665]
[null,null,null,null,null,"HORS DELAI",44665]
[null,null,null,null,null,"HORS DELAI",44665]
[null,null,null,null,null,"HORS DELAI",44665]
[null,null,null,null,null,"HORS DELAI",44665]
[null,null,null,null,null,"HORS DELAI",44665]
[null,null,null,null,null,"HORS DELAI",44665]
[null,null,null,null,null,"HORS DELAI",44665]
[null,null,null,null,null,{"$f":"IF(G514>=15,\"HORS DELAI\",\"\")","v":"HORS DELAI"},{"$f":"TODAY()-B514","v":44665}]
[null,null,null,null,null,"HORS DELAI",44665]
[null,null,null,null,null,"HORS DELAI",44665]
[null,null,null,null,null,"HORS DELAI",44665]
[null,null,null,null,null,"HORS DELAI",44665]
[null,null,null,null,null,"HORS DELAI",44665]
[null,null,null,null,null,"HORS DELAI",44665]
[null,null,null,null,null,"HORS DELAI",44665]
[null,null,null,null,null,"HORS DELAI",44665]
[null,null,null,null,null,"HORS DELAI",44665]
[null,null,null,null,null,"HORS DELAI",44665]
[null,null,null,null,null,"HORS DELAI",44665]
[null,null,null,null,null,"HORS DELAI",44665]
[null,null,null,null,null,"HORS DELAI",44665]
[null,null,null,null,null,"HORS DELAI",44665]
[null,null,null,null,null,"HORS DELAI",44665]
[null,null,null,null,null,"HORS DELAI",44665]
[null,null,null,null,null,"HORS DELAI",44665]
[null,null,null,null,null,"HORS DELAI",44665]
[null,null,null,null,null,"HORS DELAI",44665]
[null,null,null,null,null,"HORS DELAI",44665]
[null,null,null,null,null,"HORS DELAI",44665]
[null,null,null,null,null,"HORS DELAI",44665]
[null,null,null,null,null,"HORS DELAI",44665]
[null,null,null,null,null,"HORS DELAI",44665]
[null,null,null,null,null,"HORS DELAI",44665]
[null,null,null,null,null,"HORS DELAI",44665]
[null,null,null,null,null,"HORS DELAI",44665]
[null,null,null,null,null,"HORS DELAI",44665]
[null,null,null,null,null,"HORS DELAI",44665]
[null,null,null,null,null,"HORS DELAI",44665]
[null,null,null,null,null,"HORS DELAI",44665]
[null,null,null,null,null,"HORS DELAI",44665]
[null,null,null,null,null,"HORS DELAI",44665]
[null,null,null,null,null,"HORS DELAI",44665]
[null,null,null,null,null,"HORS DELAI",44665]
[null,null,null,null,null,"HORS DELAI",44665]
[null,null,null,null,null,"HORS DELAI",44665]
[null,null,null,null,null,"HORS DELAI",44665]
[null,null,null,null,null,"HORS DELAI",44665]
[null,null,null,null,null,"HORS DELAI",44665]
[null,null,null,null,null,"HORS DELAI",44665]
[null,null,null,null,null,"HORS DELAI",44665]
[null,null,null,null,null,"HORS DELAI",44665]
[null,null,null,null,null,"HORS DELAI",44665]
[null,null,null,null,null,"HORS DELAI",44665]
[null,null,null,null,null,"HORS DELAI",44665]
[null,null,null,null,null,"HORS DELAI",44665]
[null,null,null,null,null,"HORS DELAI",44665]
[null,null,null,null,null,"HORS DELAI",44665]
[null,null,null,null,null,"HORS DELAI",44665]
[null,null,null,null,null,"HORS DELAI",44665]
[null,null,null,null,null,"HORS DELAI",44665]
[null,null,null,null,null,"HORS DELAI",44665]
[null,null,null,null,null,"HORS DELAI",44665]
[null,null,null,null,null,"HORS DELAI",44665]
[null,null,null,null,null,"HORS DELAI",44665]
[null,null,null,null,null,"HORS DELAI",44665]
[null,null,null,null,null,"HORS DELAI",44665]
[null,null,null,null,null,"HORS DELAI",44665]
[null,null,null,null,null,"HORS DELAI",44665]
[null,null,null,null,null,"HORS DELAI",44665]
[null,null,null,null,null,"HORS DELAI",44665]
[null,null,null,null,null,"HORS DELAI",44665]
[null,null,null,null,null,{"$f":"IF(G578>=15,\"HORS DELAI\",\"\")","v":"HORS DELAI"},{"$f":"TODAY()-B578","v":44665}]
[null,null,null,null,null,"HORS DELAI",44665]
[null,null,null,null,null,"HORS DELAI",44665]
[null,null,null,null,null,"HORS DELAI",44665]
[null,null,null,null,null,"HORS DELAI",44665]
[null,null,null,null,null,"HORS DELAI",44665]
[null,null,null,null,null,"HORS DELAI",44665]
[null,null,null,null,null,"HORS DELAI",44665]
[null,null,null,null,null,"HORS DELAI",44665]
[null,null,null,null,null,"HORS DELAI",44665]
[null,null,null,null,null,"HORS DELAI",44665]
[null,null,null,null,null,"HORS DELAI",44665]
[null,null,null,null,null,"HORS DELAI",44665]
[null,null,null,null,null,"HORS DELAI",44665]
[null,null,null,null,null,"HORS DELAI",44665]
[null,null,null,null,null,"HORS DELAI",44665]
[null,null,null,null,null,"HORS DELAI",44665]
[null,null,null,null,null,"HORS DELAI",44665]
[null,null,null,null,null,"HORS DELAI",44665]
[null,null,null,null,null,"HORS DELAI",44665]
[null,null,null,null,null,"HORS DELAI",44665]
[null,null,null,null,null,"HORS DELAI",44665]
[null,null,null,null,null,"HORS DELAI",44665]
[null,null,null,null,null,"HORS DELAI",44665]
[null,null,null,null,null,"HORS DELAI",44665]
[null,null,null,null,null,"HORS DELAI",44665]
[null,null,null,null,null,"HORS DELAI",44665]
[null,null,null,null,null,"HORS DELAI",44665]
[null,null,null,null,null,"HORS DELAI",44665]
[null,null,null,null,null,"HORS DELAI",44665]
[null,null,null,null,null,"HORS DELAI",44665]
[null,null,null,null,null,"HORS DELAI",44665]
[null,null,null,null,null,"HORS DELAI",44665]
[null,null,null,null,null,"HORS DELAI",44665]
[null,null,null,null,null,"HORS DELAI",44665]
[null,null,null,null,null,"HORS DELAI",44665]
[null,null,null,null,null,"HORS DELAI",44665]
[null,null,null,null,null,"HORS DELAI",44665]
[null,null,null,null,null,"HORS DELAI",44665]
[null,null,null,null,null,"HORS DELAI",44665]
[null,null,null,null,null,"HORS DELAI",44665]
[null,null,null,null,null,"HORS DELAI",44665]
[null,null,null,null,null,"HORS DELAI",44665]
[null,null,null,null,null,"HORS DELAI",44665]
[null,null,null,null,null,"HORS DELAI",44665]
[null,null,null,null,null,"HORS DELAI",44665]
[null,null,null,null,null,"HORS DELAI",44665]
[null,null,null,null,null,"HORS DELAI",44665]
[null,null,null,null,null,"HORS DELAI",44665]
[null,null,null,null,null,"HORS DELAI",44665]
[null,null,null,null,null,"HORS DELAI",44665]
[null,null,null,null,null,"HORS DELAI",44665]
[null,null,null,null,null,"HORS DELAI",44665]
[null,null,null,null,null,"HORS DELAI",44665]
[null,null,null,null,null,"HORS DELAI",44665]
[null,null,null,null,null,"HORS DELAI",44665]
[null,null,null,null,null,"HORS DELAI",44665]
[null,null,null,null,null,"HORS DELAI",44665]
[null,null,null,null,null,"HORS DELAI",44665]
[null,null,null,null,null,"HORS DELAI",44665]
[null,null,null,null,null,"HORS DELAI",44665]
[null,null,null,null,null,"HORS DELAI",44665]
[null,null,null,null,null,"HORS DELAI",44665]
[null,null,null,null,null,"HORS DELAI",44665]
[null,null,null,null,null,{"$f":"IF(G642>=15,\"HORS DELAI\",\"\")","v":"HORS DELAI"},{"$f":"TODAY()-B642","v":44665}]
[null,null,null,null,null,"HORS DELAI",44665]
[null,null,null,null,null,"HORS DELAI",44665]
[null,null,null,null,null,"HORS DELAI",44665]
[null,null,null,null,null,"HORS DELAI",44665]
[null,null,null,null,null,"HORS DELAI",44665]
[null,null,null,null,null,"HORS DELAI",44665]
[null,null,null,null,null,"HORS DELAI",44665]
[null,null,null,null,null,"HORS DELAI",44665]
[null,null,null,null,null,"HORS DELAI",44665]
[null,null,null,null,null,"HORS DELAI",44665]
[null,null,null,null,null,"HORS DELAI",44665]
[null,null,null,null,null,"HORS DELAI",44665]
[null,null,null,null,null,"HORS DELAI",44665]
[null,null,null,null,null,"HORS DELAI",44665]
[null,null,null,null,null,"HORS DELAI",44665]
[null,null,null,null,null,"HORS DELAI",44665]
[null,null,null,null,null,"HORS DELAI",44665]
[null,null,null,null,null,"HORS DELAI",44665]
[null,null,null,null,null,"HORS DELAI",44665]
[null,null,null,null,null,"HORS DELAI",44665]
[null,null,null,null,null,"HORS DELAI",44665]
[null,null,null,null,null,"HORS DELAI",44665]
[null,null,null,null,null,"HORS DELAI",44665]
[null,null,null,null,null,"HORS DELAI",44665]
[null,null,null,null,null,"HORS DELAI",44665]
[null,null,null,null,null,"HORS DELAI",44665]
[null,null,null,null,null,"HORS DELAI",44665]
[null,null,null,null,null,"HORS DELAI",44665]
[null,null,null,null,null,"HORS DELAI",44665]
[null,null,null,null,null,"HORS DELAI",44665]
[null,null,null,null,null,"HORS DELAI",44665]
[null,null,null,null,null,"HORS DELAI",44665]
[null,null,null,null,null,"HORS DELAI",44665]
[null,null,null,null,null,"HORS DELAI",44665]
[null,null,null,null,null,"HORS DELAI",44665]
[null,null,null,null,null,"HORS DELAI",44665]
[null,null,null,null,null,"HORS DELAI",44665]
[null,null,null,null,null,"HORS DELAI",44665]
[null,null,null,null,null,"HORS DELAI",44665]
[null,null,null,null,null,"HORS DELAI",44665]
[null,null,null,null,null,"HORS DELAI",44665]
[null,null,null,null,null,"HORS DELAI",44665]
[null,null,null,null,null,"HORS DELAI",44665]
[null,null,null,null,null,"HORS DELAI",44665]
[null,null,null,null,null,"HORS DELAI",44665]
[null,null,null,null,null,"HORS DELAI",44665]
[null,null,null,null,null,"HORS DELAI",44665]
[null,null,null,null,null,"HORS DELAI",44665]
[null,null,null,null,null,"HORS DELAI",44665]
[null,null,null,null,null,"HORS DELAI",44665]
[null,null,null,null,null,"HORS DELAI",44665]
[null,null,null,null,null,"HORS DELAI",44665]
[null,null,null,null,null,"HORS DELAI",44665]
[null,null,null,null,null,"HORS DELAI",44665]
[null,null,null,null,null,"HORS DELAI",44665]
[null,null,null,null,null,"HORS DELAI",44665]
[null,null,null,null,null,"HORS DELAI",44665]
[null,null,null,null,null,"HORS DELAI",44665]
[null,null,null,null,null,"HORS DELAI",44665]
[null,null,null,null,null,"HORS DELAI",44665]
[null,null,null,null,null,"HORS DELAI",44665]
[null,null,null,null,null,"HORS DELAI",44665]
[null,null,null,null,null,"HORS DELAI",44665]
[null,null,null,null,null,{"$f":"IF(G706>=15,\"HORS DELAI\",\"\")","v":"HORS DELAI"},{"$f":"TODAY()-B706","v":44665}]
[null,null,null,null,null,"HORS DELAI",44665]
[null,null,null,null,null,"HORS DELAI",44665]
[null,null,null,null,null,"HORS DELAI",44665]
[null,null,null,null,null,"HORS DELAI",44665]
[null,null,null,null,null,"HORS DELAI",44665]
[null,null,null,null,null,"HORS DELAI",44665]
[null,null,null,null,null,"HORS DELAI",44665]
[null,null,null,null,null,"HORS DELAI",44665]
[null,null,null,null,null,"HORS DELAI",44665]
[null,null,null,null,null,"HORS DELAI",44665]
[null,null,null,null,null,"HORS DELAI",44665]
[null,null,null,null,null,"HORS DELAI",44665]
[null,null,null,null,null,"HORS DELAI",44665]
[null,null,null,null,null,"HORS DELAI",44665]
[null,null,null,null,null,"HORS DELAI",44665]
[null,null,null,null,null,"HORS DELAI",44665]
[null,null,null,null,null,"HORS DELAI",44665]
[null,null,null,null,null,"HORS DELAI",44665]
[null,null,null,null,null,"HORS DELAI",44665]
[null,null,null,null,null,"HORS DELAI",44665]
[null,null,null,null,null,"HORS DELAI",44665]
[null,null,null,null,null,"HORS DELAI",44665]
[null,null,null,null,null,"HORS DELAI",44665]
[null,null,null,null,null,"HORS DELAI",44665]
[null,null,null,null,null,"HORS DELAI",44665]
[null,null,null,null,null,"HORS DELAI",44665]
[null,null,null,null,null,"HORS DELAI",44665]
[null,null,null,null,null,"HORS DELAI",44665]
[null,null,null,null,null,"HORS DELAI",44665]
[null,null,null,null,null,"HORS DELAI",44665]
[null,null,null,null,null,"HORS DELAI",44665]
[null,null,null,null,null,"HORS DELAI",44665]
[null,null,null,null,null,"HORS DELAI",44665]
[null,null,null,null,null,"HORS DELAI",44665]
[null,null,null,null,null,"HORS DELAI",44665]
[null,null,null,null,null,"HORS DELAI",44665]
[null,null,null,null,null,"HORS DELAI",44665]
[null,null,null,null,null,"HORS DELAI",44665]
[null,null,null,null,null,"HORS DELAI",44665]
[null,null,null,null,null,"HORS DELAI",44665]
[null,null,null,null,null,"HORS DELAI",44665]
[null,null,null,null,null,"HORS DELAI",44665]
[null,null,null,null,null,"HORS DELAI",44665]
[null,null,null,null,null,"HORS DELAI",44665]
[null,null,null,null,null,"HORS DELAI",44665]
[null,null,null,null,null,"HORS DELAI",44665]
[null,null,null,null,null,"HORS DELAI",44665]
[null,null,null,null,null,"HORS DELAI",44665]
[null,null,null,null,null,"HORS DELAI",44665]
[null,null,null,null,null,"HORS DELAI",44665]
[null,null,null,null,null,"HORS DELAI",44665]
[null,null,null,null,null,"HORS DELAI",44665]
[null,null,null,null,null,"HORS DELAI",44665]
[null,null,null,null,null,"HORS DELAI",44665]
[null,null,null,null,null,"HORS DELAI",44665]
[null,null,null,null,null,"HORS DELAI",44665]
[null,null,null,null,null,"HORS DELAI",44665]
[null,null,null,null,null,"HORS DELAI",44665]
[null,null,null,null,null,"HORS DELAI",44665]
[null,null,null,null,null,"HORS DELAI",44665]
[null,null,null,null,null,"HORS DELAI",44665]
[null,null,null,null,null,"HORS DELAI",44665]
[null,null,null,null,null,"HORS DELAI",44665]
[null,null,null,null,null,{"$f":"IF(G770>=15,\"HORS DELAI\",\"\")","v":"HORS DELAI"},{"$f":"TODAY()-B770","v":44665}]
[null,null,null,null,null,"HORS DELAI",44665]
[null,null,null,null,null,"HORS DELAI",44665]
[null,null,null,null,null,"HORS DELAI",44665]
[null,null,null,null,null,"HORS DELAI",44665]
[null,null,null,null,null,"HORS DELAI",44665]
[null,null,null,null,null,"HORS DELAI",44665]
[null,null,null,null,null,"HORS DELAI",44665]
[null,null,null,null,null,"HORS DELAI",44665]
[null,null,null,null,null,"HORS DELAI",44665]
[null,null,null,null,null,"HORS DELAI",44665]
[null,null,null,null,null,"HORS DELAI",44665]
[null,null,null,null,null,"HORS DELAI",44665]
[null,null,null,null,null,"HORS DELAI",44665]
[null,null,null,null,null,"HORS DELAI",44665]
[null,null,null,null,null,"HORS DELAI",44665]
[null,null,null,null,null,"HORS DELAI",44665]
[null,null,null,null,null,"HORS DELAI",44665]
[null,null,null,null,null,"HORS DELAI",44665]
[null,null,null,null,null,"HORS DELAI",44665]
[null,null,null,null,null,"HORS DELAI",44665]
[null,null,null,null,null,"HORS DELAI",44665]
[null,null,null,null,null,"HORS DELAI",44665]
[null,null,null,null,null,"HORS DELAI",44665]
[null,null,null,null,null,"HORS DELAI",44665]
[null,null,null,null,null,"HORS DELAI",44665]
[null,null,null,null,null,"HORS DELAI",44665]
[null,null,null,null,null,"HORS DELAI",44665]
[null,null,null,null,null,"HORS DELAI",44665]
[null,null,null,null,null,"HORS DELAI",44665]
[null,null,null,null,null,"HORS DELAI",44665]
[null,null,null,null,null,"HORS DELAI",44665]
[null,null,null,null,null,"HORS DELAI",44665]
[null,null,null,null,null,"HORS DELAI",44665]
[null,null,null,null,null,"HORS DELAI",44665]
[null,null,null,null,null,"HORS DELAI",44665]
[null,null,null,null,null,"HORS DELAI",44665]
[null,null,null,null,null,"HORS DELAI",44665]
[null,null,null,null,null,"HORS DELAI",44665]
[null,null,null,null,null,"HORS DELAI",44665]
[null,null,null,null,null,"HORS DELAI",44665]
[null,null,null,null,null,"HORS DELAI",44665]
[null,null,null,null,null,"HORS DELAI",44665]
[null,null,null,null,null,"HORS DELAI",44665]
[null,null,null,null,null,"HORS DELAI",44665]
[null,null,null,null,null,"HORS DELAI",44665]
[null,null,null,null,null,"HORS DELAI",44665]
[null,null,null,null,null,"HORS DELAI",44665]
[null,null,null,null,null,"HORS DELAI",44665]
[null,null,null,null,null,"HORS DELAI",44665]
[null,null,null,null,null,"HORS DELAI",44665]
[null,null,null,null,null,"HORS DELAI",44665]
[null,null,null,null,null,"HORS DELAI",44665]
[null,null,null,null,null,"HORS DELAI",44665]
[null,null,null,null,null,"HORS DELAI",44665]
[null,null,null,null,null,"HORS DELAI",44665]
[null,null,null,null,null,"HORS DELAI",44665]
[null,null,null,null,null,"HORS DELAI",44665]
[null,null,null,null,null,"HORS DELAI",44665]
[null,null,null,null,null,"HORS DELAI",44665]
[null,null,null,null,null,"HORS DELAI",44665]
[null,null,null,null,null,"HORS DELAI",44665]
[null,null,null,null,null,"HORS DELAI",44665]
[null,null,null,null,null,"HORS DELAI",44665]
[null,null,null,null,null,{"$f":"IF(G834>=15,\"HORS DELAI\",\"\")","v":"HORS DELAI"},{"$f":"TODAY()-B834","v":44665}]
[null,null,null,null,null,"HORS DELAI",44665]
[null,null,null,null,null,"HORS DELAI",44665]
[null,null,null,null,null,"HORS DELAI",44665]
[null,null,null,null,null,"HORS DELAI",44665]
[null,null,null,null,null,"HORS DELAI",44665]
[null,null,null,null,null,"HORS DELAI",44665]
[null,null,null,null,null,"HORS DELAI",44665]
[null,null,null,null,null,"HORS DELAI",44665]
[null,null,null,null,null,"HORS DELAI",44665]
[null,null,null,null,null,"HORS DELAI",44665]
[null,null,null,null,null,"HORS DELAI",44665]
[null,null,null,null,null,"HORS DELAI",44665]
[null,null,null,null,null,"HORS DELAI",44665]
[null,null,null,null,null,"HORS DELAI",44665]
[null,null,null,null,null,"HORS DELAI",44665]
[null,null,null,null,null,"HORS DELAI",44665]
[null,null,null,null,null,"HORS DELAI",44665]
[null,null,null,null,null,"HORS DELAI",44665]
[null,null,null,null,null,"HORS DELAI",44665]
[null,null,null,null,null,"HORS DELAI",44665]
[null,null,null,null,null,"HORS DELAI",44665]
[null,null,null,null,null,"HORS DELAI",44665]
[null,null,null,null,null,"HORS DELAI",44665]
[null,null,null,null,null,"HORS DELAI",44665]
[null,null,null,null,null,"HORS DELAI",44665]
[null,null,null,null,null,"HORS DELAI",44665]
[null,null,null,null,null,"HORS DELAI",44665]
[null,null,null,null,null,"HORS DELAI",44665]
[null,null,null,null,null,"HORS DELAI",44665]
[null,null,null,null,null,"HORS DELAI",44665]
[null,null,null,null,null,"HORS DELAI",44665]
[null,null,null,null,null,"HORS DELAI",44665]
[null,null,null,null,null,"HORS DELAI",44665]
[null,null,null,null,null,"HORS DELAI",44665]
[null,null,null,null,null,"HORS DELAI",44665]
[null,null,null,null,null,"HORS DELAI",44665]
[null,null,null,null,null,"HORS DELAI",44665]
[null,null,null,null,null,"HORS DELAI",44665]
[null,null,null,null,null,"HORS DELAI",44665]
[null,null,null,null,null,"HORS DELAI",44665]
[null,null,null,null,null,"HORS DELAI",44665]
[null,null,null,null,null,"HORS DELAI",44665]
[null,null,null,null,null,"HORS DELAI",44665]
[null,null,null,null,null,"HORS DELAI",44665]
[null,null,null,null,null,"HORS DELAI",44665]
[null,null,null,null,null,"HORS DELAI",44665]
[null,null,null,null,null,"HORS DELAI",44665]
[null,null,null,null,null,"HORS DELAI",44665]
[null,null,null,null,null,"HORS DELAI",44665]
[null,null,null,null,null,"HORS DELAI",44665]
[null,null,null,null,null,"HORS DELAI",44665]
[null,null,null,null,null,"HORS DELAI",44665]
[null,null,null,null,null,"HORS DELAI",44665]
[null,null,null,null,null,"HORS DELAI",44665]
[null,null,null,null,null,"HORS DELAI",44665]
[null,null,null,null,null,"HORS DELAI",44665]
[null,null,null,null,null,"HORS DELAI",44665]
[null,null,null,null,null,"HORS DELAI",44665]
[null,null,null,null,null,"HORS DELAI",44665]
[null,null,null,null,null,"HORS DELAI",44665]
[null,null,null,null,null,"HORS DELAI",44665]
[null,null,null,null,null,"HORS DELAI",44665]
[null,null,null,null,null,"HORS DELAI",44665]
[null,null,null,null,null,{"$f":"IF(G898>=15,\"HORS DELAI\",\"\")","v":"HORS DELAI"},{"$f":"TODAY()-B898","v":44665}]
[null,null,null,null,null,"HORS DELAI",44665]
[null,null,null,null,null,"HORS DELAI",44665]
[null,null,null,null,null,"HORS DELAI",44665]
[null,null,null,null,null,"HORS DELAI",44665]
[null,null,null,null,null,"HORS DELAI",44665]
[null,null,null,null,null,"HORS DELAI",44665]
[null,null,null,null,null,"HORS DELAI",44665]
[null,null,null,null,null,"HORS DELAI",44665]
[null,null,null,null,null,"HORS DELAI",44665]
[null,null,null,null,null,"HORS DELAI",44665]
[null,null,null,null,null,"HORS DELAI",44665]
[null,null,null,null,null,"HORS DELAI",44665]
[null,null,null,null,null,"HORS DELAI",44665]
[null,null,null,null,null,"HORS DELAI",44665]
[null,null,null,null,null,"HORS DELAI",44665]
[null,null,null,null,null,"HORS DELAI",44665]
[null,null,null,null,null,"HORS DELAI",44665]
[null,null,null,null,null,"HORS DELAI",44665]
[null,null,null,null,null,"HORS DELAI",44665]
[null,null,null,null,null,"HORS DELAI",44665]
[null,null,null,null,null,"HORS DELAI",44665]
[null,null,null,null,null,"HORS DELAI",44665]
[null,null,null,null,null,"HORS DELAI",44665]
[null,null,null,null,null,"HORS DELAI",44665]
[null,null,null,null,null,"HORS DELAI",44665]
[null,null,null,null,null,"HORS DELAI",44665]
[null,null,null,null,null,"HORS DELAI",44665]
[null,null,null,null,null,"HORS DELAI",44665]
[null,null,null,null,null,"HORS DELAI",44665]
[null,null,null,null,null,"HORS DELAI",44665]
[null,null,null,null,null,"HORS DELAI",44665]
[null,null,null,null,null,"HORS DELAI",44665]
[null,null,null,null,null,"HORS DELAI",44665]
[null,null,null,null,null,"HORS DELAI",44665]
[null,null,null,null,null,"HORS DELAI",44665]
[null,null,null,null,null,"HORS DELAI",44665]
[null,null,null,null,null,"HORS DELAI",44665]
[null,null,null,null,null,"HORS DELAI",44665]
[null,null,null,null,null,"HORS DELAI",44665]
[null,null,null,null,null,"HORS DELAI",44665]
[null,null,null,null,null,"HORS DELAI",44665]
[null,null,null,null,null,"HORS DELAI",44665]
[null,null,null,null,null,"HORS DELAI",44665]
[null,null,null,null,null,"HORS DELAI",44665]
[null,null,null,null,null,"HORS DELAI",44665]
[null,null,null,null,null,"HORS DELAI",44665]
[null,null,null,null,null,"HORS DELAI",44665]
[null,null,null,null,null,"HORS DELAI",44665]
[null,null,null,null,null,"HORS DELAI",44665]
[null,null,null,null,null,"HORS DELAI",44665]
[null,null,null,null,null,"HORS DELAI",44665]
[null,null,null,null,null,"HORS DELAI",44665]
[null,null,null,null,null,"HORS DELAI",44665]
[null,null,null,null,null,"HORS DELAI",44665]
[null,null,null,null,null,"HORS DELAI",44665]
[null,null,null,null,null,"HORS DELAI",44665]
[null,null,null,null,null,"HORS DELAI",44665]
[null,null,null,null,null,"HORS DELAI",44665]
[null,null,null,null,null,"HORS DELAI",44665]
[null,null,null,null,null,"HORS DELAI",44665]
[null,null,null,null,null,"HORS DELAI",44665]
[null,null,null,null,null,"HORS DELAI",44665]
[null,null,null,null,null,"HORS DELAI",44665]
[null,null,null,null,null,{"$f":"IF(G962>=15,\"HORS DELAI\",\"\")","v":"HORS DELAI"},{"$f":"TODAY()-B962","v":44665}]
[null,null,null,null,null,"HORS DELAI",44665]
[null,null,null,null,null,"HORS DELAI",44665]
[null,null,null,null,null,"HORS DELAI",44665]
[null,null,null,null,null,"HORS DELAI",44665]
[null,null,null,null,null,"HORS DELAI",44665]
[null,null,null,null,null,"HORS DELAI",44665]
[null,null,null,null,null,"HORS DELAI",44665]
[null,null,null,null,null,"HORS DELAI",44665]
[null,null,null,null,null,"HORS DELAI",44665]
[null,null,null,null,null,"HORS DELAI",44665]
[null,null,null,null,null,"HORS DELAI",44665]
[null,null,null,null,null,"HORS DELAI",44665]
[null,null,null,null,null,"HORS DELAI",44665]
[null,null,null,null,null,"HORS DELAI",44665]
[null,null,null,null,null,"HORS DELAI",44665]
[null,null,null,null,null,"HORS DELAI",44665]
[null,null,null,null,null,"HORS DELAI",44665]
[null,null,null,null,null,"HORS DELAI",44665]
[null,null,null,null,null,"HORS DELAI",44665]
[null,null,null,null,null,"HORS DELAI",44665]
[null,null,null,null,null,"HORS DELAI",44665]
[null,null,null,null,null,"HORS DELAI",44665]
[null,null,null,null,null,"HORS DELAI",44665]
[null,null,null,null,null,"HORS DELAI",44665]
[null,null,null,null,null,"HORS DELAI",44665]
[null,null,null,null,null,"HORS DELAI",44665]
[null,null,null,null,null,"HORS DELAI",44665]
[null,null,null,null,null,"HORS DELAI",44665]
[null,null,null,null,null,"HORS DELAI",44665]
[null,null,null,null,null,"HORS DELAI",44665]
[null,null,null,null,null,"HORS DELAI",44665]
[null,null,null,null,null,"HORS DELAI",44665]
[null,null,null,null,null,"HORS DELAI",44665]
[null,null,null,null,null,"HORS DELAI",44665]
[null,null,null,null,null,"HORS DELAI",44665]
[null,null,null,null,null,"HORS DELAI",44665]
[null,null,null,null,null,"HORS DELAI",44665]
[null,null,null,null,null,"HORS DELAI",44665]
[null,null,null,null,null,"HORS DELAI",44665]
[null,null,null,null,null,"HORS DELAI",44665]
[null,null,null,null,null,"HORS DELAI",44665]
[null,null,null,null,null,"HORS DELAI",44665]
[null,null,null,null,null,"HORS DELAI",44665]
[null,null,null,null,null,"HORS DELAI",44665]
[null,null,null,null,null,"HORS DELAI",44665]
[null,null,null,null,null,"HORS DELAI",44665]
[null,null,null,null,null,"HORS DELAI",44665]
[null,null,null,null,null,"HORS DELAI",44665]
[null,null,null,null,null,"HORS DELAI",44665]
[null,null,null,null,null,"HORS DELAI",44665]
[null,null,null,null,null,"HORS DELAI",44665]
[null,null,null,null,null,"HORS DELAI",44665]
[null,null,null,null,null,"HORS DELAI",44665]
[null,null,null,null,null,"HORS DELAI",44665]
[null,null,null,null,null,"HORS DELAI",44665]
[null,null,null,null,null,"HORS DELAI",44665]
[null,null,null,null,null,"HORS DELAI",44665]
[null,null,null,null,null,"HORS DELAI",44665]
[null,null,null,null,null,"HORS DELAI",44665]
[null,null,null,null,null,"HORS DELAI",44665]
[null,null,null,null,null,"HORS DELAI",44665]
[null,null,null,null,null,"HORS DELAI",44665]
[null,null,null,null,null,"HORS DELAI",44665]
[null,null,null,null,null,{"$f":"IF(G1026>=15,\"HORS DELAI\",\"\")","v":"HORS DELAI"},{"$f":"TODAY()-B1026","v":44665}]
[null,null,null,null,null,"HORS DELAI",44665]
[null,null,null,null,null,"HORS DELAI",44665]
[null,null,null,null,null,"HORS DELAI",44665]
[null,null,null,null,null,"HORS DELAI",44665]
[null,null,null,null,null,"HORS DELAI",44665]
[null,null,null,null,null,"HORS DELAI",44665]
[null,null,null,null,null,"HORS DELAI",44665]
[null,null,null,null,null,"HORS DELAI",44665]
[null,null,null,null,null,"HORS DELAI",44665]
[null,null,null,null,null,"HORS DELAI",44665]
[null,null,null,null,null,"HORS DELAI",44665]
[null,null,null,null,null,"HORS DELAI",44665]
[null,null,null,null,null,"HORS DELAI",44665]
[null,null,null,null,null,"HORS DELAI",44665]
[null,null,null,null,null,"HORS DELAI",44665]
[null,null,null,null,null,"HORS DELAI",44665]
[null,null,null,null,null,"HORS DELAI",44665]
[null,null,null,null,null,"HORS DELAI",44665]
[null,null,null,null,null,"HORS DELAI",44665]
[null,null,null,null,null,"HORS DELAI",44665]
[null,null,null,null,null,"HORS DELAI",44665]
[null,null,null,null,null,"HORS DELAI",44665]
[null,null,null,null,null,"HORS DELAI",44665]
[null,null,null,null,null,"HORS DELAI",44665]
[null,null,null,null,null,"HORS DELAI",44665]
[null,null,null,null,null,"HORS DELAI",44665]
[null,null,null,null,null,"HORS DELAI",44665]
[null,null,null,null,null,"HORS DELAI",44665]
[null,null,null,null,null,"HORS DELAI",44665]
[null,null,null,null,null,"HORS DELAI",44665]
[null,null,null,null,null,"HORS DELAI",44665]
[null,null,null,null,null,"HORS DELAI",44665]
[null,null,null,null,null,"HORS DELAI",44665]
[null,null,null,null,null,"HORS DELAI",44665]
[null,null,null,null,null,"HORS DELAI",44665]
[null,null,null,null,null,"HORS DELAI",44665]
[null,null,null,null,null,"HORS DELAI",44665]
[null,null,null,null,null,"HORS DELAI",44665]
[null,null,null,null,null,"HORS DELAI",44665]
[null,null,null,null,null,"HORS DELAI",44665]
[null,null,null,null,null,"HORS DELAI",44665]
[null,null,null,null,null,"HORS DELAI",44665]
[null,null,null,null,null,"HORS DELAI",44665]
[null,null,null,null,null,"HORS DELAI",44665]
[null,null,null,null,null,"HORS DELAI",44665]
[null,null,null,null,null,"HORS DELAI",44665]
[null,null,null,null,null,"HORS DELAI",44665]
[null,null,null,null,null,"HORS DELAI",44665]
[null,null,null,null,null,"HORS DELAI",44665]
[null,null,null,null,null,"HORS DELAI",44665]
[null,null,null,null,null,"HORS DELAI",44665]
[null,null,null,null,null,"HORS DELAI",44665]
[null,null,null,null,null,"HORS DELAI",44665]
[null,null,null,null,null,"HORS DELAI",44665]
[null,null,null,null,null,"HORS DELAI",44665]
[null,null,null,null,null,"HORS DELAI",44665]
[null,null,null,null,null,"HORS DELAI",44665]
[null,null,null,null,null,"HORS DELAI",44665]
[null,null,null,null,null,"HORS DELAI",44665]
[null,null,null,null,null,"HORS DELAI",44665]
[null,null,null,null,null,"HORS DELAI",44665]
[null,null,null,null,null,"HORS DELAI",44665]
[null,null,null,null,null,"HORS DELAI",44665]
[null,null,null,null,null,{"$f":"IF(G1090>=15,\"HORS DELAI\",\"\")","v":"HORS DELAI"},{"$f":"TODAY()-B1090","v":44665}]
[null,null,null,null,null,"HORS DELAI",44665]
[null,null,null,null,null,"HORS DELAI",44665]
[null,null,null,null,null,"HORS DELAI",44665]
[null,null,null,null,null,"HORS DELAI",44665]
[null,null,null,null,null,"HORS DELAI",44665]
[null,null,null,null,null,"HORS DELAI",44665]
[null,null,null,null,null,{"$f":"IF(B1097>=15,\"HORS DELAI\",\"\")","v":""},44665]
[null,null,null,null,null,"",44665]
[null,null,null,null,null,"",44665]
[null,null,null,null,null,"",44665]
[null,null,null,null,null,"",44665]
[null,null,null,null,null,"",44665]
[null,null,null,null,null,"",44665]
[null,null,null,null,null,"",44665]
[null,null,null,null,null,"",44665]
[null,null,null,null,null,"",44665]
[null,null,null,null,null,"",44665]
[null,null,null,null,null,"",44665]
[null,null,null,null,null,"",44665]
[null,null,null,null,null,"",44665]
[null,null,null,null,null,"",44665]
[null,null,null,null,null,"",44665]
[null,null,null,null,null,"",44665]
[null,null,null,null,null,"",44665]
[null,null,null,null,null,"",44665]
[null,null,null,null,null,"",44665]
[null,null,null,null,null,"",44665]
[null,null,null,null,null,"",44665]
[null,null,null,null,null,"",44665]
[null,null,null,null,null,"",44665]
[null,null,null,null,null,"",44665]
[null,null,null,null,null,"",44665]
[null,null,null,null,null,"",44665]
[null,null,null,null,null,"",44665]
[null,null,null,null,null,"",44665]
[null,null,null,null,null,"",44665]
[null,null,null,null,null,"",44665]
[null,null,null,null,null,"",44665]
[null,null,null,null,null,"",44665]
[null,null,null,null,null,"",44665]
[null,null,null,null,null,"",44665]
[null,null,null,null,null,"",44665]
[null,null,null,null,null,"",44665]
[null,null,null,null,null,"",44665]
[null,null,null,null,null,"",44665]
[null,null,null,null,null,"",44665]
[null,null,null,null,null,"",44665]
[null,null,null,null,null,"",44665]
[null,null,null,null,null,"",44665]
[null,null,null,null,null,"",44665]
[null,null,null,null,null,"",44665]
[null,null,null,null,null,"",44665]
[null,null,null,null,null,"",44665]
[null,null,null,null,null,"",44665]
[null,null,null,null,null,"",44665]
[null,null,null,null,null,"",44665]
[null,null,null,null,null,"",44665]
[null,null,null,null,null,"",44665]
[null,null,null,null,null,"",44665]
[null,null,null,null,null,"",44665]
[null,null,null,null,null,"",44665]
[null,null,null,null,null,"",44665]
[null,null,null,null,null,"",44665]
[null,null,null,null,null,"",{"$f":"TODAY()-B1154","v":44665}]
[null,null,null,null,null,"",44665]
[null,null,null,null,null,"",44665]
[null,null,null,null,null,"",44665]
[null,null,null,null,null,"",44665]
[null,null,null,null,null,"",44665]
[null,null,null,null,null,"",44665]
[null,null,null,null,null,{"$f":"IF(B1161>=15,\"HORS DELAI\",\"\")","v":""},44665]
[null,null,null,null,null,"",44665]
[null,null,null,null,null,"",44665]
[null,null,null,null,null,"",44665]
[null,null,null,null,null,"",44665]
[null,null,null,null,null,"",44665]
[null,null,null,null,null,"",44665]
[null,null,null,null,null,"",44665]
[null,null,null,null,null,"",44665]
[null,null,null,null,null,"",44665]
[null,null,null,null,null,"",44665]
[null,null,null,null,null,"",44665]
[null,null,null,null,null,"",44665]
[null,null,null,null,null,"",44665]
[null,null,null,null,null,"",44665]
[null,null,null,null,null,"",44665]
[null,null,null,null,null,"",44665]
[null,null,null,null,null,"",44665]
[null,null,null,null,null,"",44665]
[null,null,null,null,null,"",44665]
[null,null,null,null,null,"",44665]
[null,null,null,null,null,"",44665]
[null,null,null,null,null,"",44665]
[null,null,null,null,null,"",44665]
[null,null,null,null,null,"",44665]
[null,null,null,null,null,"",44665]
[null,null,null,null,null,"",44665]
[null,null,null,null,null,"",44665]
[null,null,null,null,null,"",44665]
[null,null,null,null,null,"",44665]
[null,null,null,null,null,"",44665]
[null,null,null,null,null,"",44665]
[null,null,null,null,null,"",44665]
[null,null,null,null,null,"",44665]
[null,null,null,null,null,"",44665]
[null,null,null,null,null,"",44665]
[null,null,null,null,null,"",44665]
[null,null,null,null,null,"",44665]
[null,null,null,null,null,"",44665]
[null,null,null,null,null,"",44665]
[null,null,null,null,null,"",44665]
[null,null,null,null,null,"",44665]
[null,null,null,null,null,"",44665]
[null,null,null,null,null,"",44665]
[null,null,null,null,null,"",44665]
[null,null,null,null,null,"",44665]
[null,null,null,null,null,"",44665]
[null,null,null,null,null,"",44665]
[null,null,null,null,null,"",44665]
[null,null,null,null,null,"",44665]
[null,null,null,null,null,"",44665]
[null,null,null,null,null,"",44665]
[null,null,null,null,null,"",44665]
[null,null,null,null,null,"",44665]
[null,null,null,null,null,"",44665]
[null,null,null,null,null,"",44665]
[null,null,null,null,null,"",44665]
[null,null,null,null,null,"",{"$f":"TODAY()-B1218","v":44665}]
[null,null,null,null,null,"",44665]
[null,null,null,null,null,"",44665]
[null,null,null,null,null,"",44665]
[null,null,null,null,null,"",44665]
[null,null,null,null,null,"",44665]
[null,null,null,null,null,"",44665]
[null,null,null,null,null,{"$f":"IF(B1225>=15,\"HORS DELAI\",\"\")","v":""},44665]
[null,null,null,null,null,"",44665]
[null,null,null,null,null,"",44665]
[null,null,null,null,null,"",44665]
[null,null,null,null,null,"",44665]
[null,null,null,null,null,"",44665]
[null,null,null,null,null,"",44665]
[null,null,null,null,null,"",44665]
[null,null,null,null,null,"",44665]
[null,null,null,null,null,"",44665]
[null,null,null,null,null,"",44665]
[null,null,null,null,null,"",44665]
[null,null,null,null,null,"",44665]
[null,null,null,null,null,"",44665]
[null,null,null,null,null,"",44665]
[null,null,null,null,null,"",44665]
[null,null,null,null,null,"",44665]
[null,null,null,null,null,"",44665]
[null,null,null,null,null,"",44665]
[null,null,null,null,null,"",44665]
[null,null,null,null,null,"",44665]
[null,null,null,null,null,"",44665]
[null,null,null,null,null,"",44665]
[null,null,null,null,null,"",44665]
[null,null,null,null,null,"",44665]
[null,null,null,null,null,"",44665]
[null,null,null,null,null,"",44665]
[null,null,null,null,null,"",44665]
[null,null,null,null,null,"",44665]
[null,null,null,null,null,"",44665]
[null,null,null,null,null,"",44665]
[null,null,null,null,null,"",44665]
[null,null,null,null,null,"",44665]
[null,null,null,null,null,"",44665]
[null,null,null,null,null,"",44665]
[null,null,null,null,null,"",44665]
[null,null,null,null,null,"",44665]
[null,null,null,null,null,"",44665]
[null,null,null,null,null,"",44665]
[null,null,null,null,null,"",44665]
[null,null,null,null,null,"",44665]
[null,null,null,null,null,"",44665]
[null,null,null,null,null,"",44665]
[null,null,null,null,null,"",44665]
[null,null,null,null,null,"",44665]
[null,null,null,null,null,"",44665]
[null,null,null,null,null,"",44665]
[null,null,null,null,null,"",44665]
[null,null,null,null,null,"",44665]
[null,null,null,null,null,"",44665]
[null,null,null,null,null,"",44665]
[null,null,null,null,null,"",44665]
[null,null,null,null,null,"",44665]
[null,null,null,null,null,"",44665]
[null,null,null,null,null,"",44665]
[null,null,null,null,null,"",44665]
[null,null,null,null,null,"",44665]
[null,null,null,null,null,"",{"$f":"TODAY()-B1282","v":44665}]
[null,null,null,null,null,"",44665]
[null,null,null,null,null,"",44665]
[null,null,null,null,null,"",44665]
[null,null,null,null,null,"",44665]
[null,null,null,null,null,"",44665]
[null,null,null,null,null,"",44665]
[null,null,null,null,null,{"$f":"IF(B1289>=15,\"HORS DELAI\",\"\")","v":""},44665]
[null,null,null,null,null,"",44665]
[null,null,null,null,null,"",44665]
[null,null,null,null,null,"",44665]
[null,null,null,null,null,"",44665]
[null,null,null,null,null,"",44665]
[null,null,null,null,null,"",44665]
[null,null,null,null,null,"",44665]
[null,null,null,null,null,"",44665]
[null,null,null,null,null,"",44665]
[null,null,null,null,null,"",44665]
[null,null,null,null,null,"",44665]
[null,null,null,null,null,"",44665]
[null,null,null,null,null,"",44665]
[null,null,null,null,null,"",44665]
[null,null,null,null,null,"",44665]
[null,null,null,null,null,"",44665]
[null,null,null,null,null,"",44665]
[null,null,null,null,null,"",44665]
[null,null,null,null,null,"",44665]
[null,null,null,null,null,"",44665]
[null,null,null,null,null,"",44665]
[null,null,null,null,null,"",44665]
[null,null,null,null,null,"",44665]
[null,null,null,null,null,"",44665]
[null,null,null,null,null,"",44665]
[null,null,null,null,null,"",44665]
[null,null,null,null,null,"",44665]
[null,null,null,null,null,"",44665]
[null,null,null,null,null,"",44665]
[null,null,null,null,null,"",44665]
[null,null,null,null,null,"",44665]
[null,null,null,null,null,"",44665]
[null,null,null,null,null,"",44665]
[null,null,null,null,null,"",44665]
[null,null,null,null,null,"",44665]
[null,null,null,null,null,"",44665]
[null,null,null,null,null,"",44665]
[null,null,null,null,null,"",44665]
[null,null,null,null,null,"",44665]
[null,null,null,null,null,"",44665]
[null,null,null,null,null,"",44665]
[null,null,null,null,null,"",44665]
[null,null,null,null,null,"",44665]
[null,null,null,null,null,"",44665]
[null,null,null,null,null,"",44665]
[null,null,null,null,null,"",44665]
[null,null,null,null,null,"",44665]
[null,null,null,null,null,"",44665]
[null,null,null,null,null,"",44665]
[null,null,null,null,null,"",44665]
[null,null,null,null,null,"",44665]
[null,null,null,null,null,"",44665]
[null,null,null,null,null,"",44665]
[null,null,null,null,null,"",44665]
[null,null,null,null,null,"",44665]
[null,null,null,null,null,"",44665]
[null,null,null,null,null,"",{"$f":"TODAY()-B1346","v":44665}]
[null,null,null,null,null,"",44665]
[null,null,null,null,null,"",44665]
[null,null,null,null,null,"",44665]
[null,null,null,null,null,"",44665]
[null,null,null,null,null,"",44665]
[null,null,null,null,null,"",44665]
[null,null,null,null,null,{"$f":"IF(B1353>=15,\"HORS DELAI\",\"\")","v":""},44665]
[null,null,null,null,null,"",44665]
[null,null,null,null,null,"",44665]
[null,null,null,null,null,"",44665]
[null,null,null,null,null,"",44665]
[null,null,null,null,null,"",44665]
[null,null,null,null,null,"",44665]
[null,null,null,null,null,"",44665]
[null,null,null,null,null,"",44665]
[null,null,null,null,null,"",44665]
[null,null,null,null,null,"",44665]
[null,null,null,null,null,"",44665]
[null,null,null,null,null,"",44665]
[null,null,null,null,null,"",44665]
[null,null,null,null,null,"",44665]
[null,null,null,null,null,"",44665]
[null,null,null,null,null,"",44665]
[null,null,null,null,null,"",44665]
[null,null,null,null,null,"",44665]
[null,null,null,null,null,"",44665]
[null,null,null,null,null,"",44665]
[null,null,null,null,null,"",44665]
[null,null,null,null,null,"",44665]
[null,null,null,null,null,"",44665]
[null,null,null,null,null,"",44665]
[null,null,null,null,null,"",44665]
[null,null,null,null,null,"",44665]
[null,null,null,null,null,"",44665]
[null,null,null,null,null,"",44665]
[null,null,null,null,null,"",44665]
[null,null,null,null,null,"",44665]
[null,null,null,null,null,"",44665]
[null,null,null,null,null,"",44665]
[null,null,null,null,null,"",44665]
[null,null,null,null,null,"",44665]
[null,null,null,null,null,"",44665]
[null,null,null,null,null,"",44665]
[null,null,null,null,null,"",44665]
[null,null,null,null,null,"",44665]
[null,null,null,null,null,"",44665]
[null,null,null,null,null,"",44665]
[null,null,null,null,null,"",44665]
[null,null,null,null,null,"",44665]
[null,null,null,null,null,"",44665]
[null,null,null,null,null,"",44665]
[null,null,null,null,null,"",44665]
[null,null,null,null,null,"",44665]
[null,null,null,null,null,"",44665]
[null,null,null,null,null,"",44665]
[null,null,null,null,null,"",44665]
[null,null,null,null,null,"",44665]
[null,null,null,null,null,"",44665]
[null,null,null,null,null,"",44665]
[null,null,null,null,null,"",44665]
[null,null,null,null,null,"",44665]
[null,null,null,null,null,"",44665]
[null,null,null,null,null,"",44665]
[null,null,null,null,null,"",{"$f":"TODAY()-B1410","v":44665}]
[null,null,null,null,null,"",44665]
[null,null,null,null,null,"",44665]
[null,null,null,null,null,"",44665]
[null,null,null,null,null,"",44665]
[null,null,null,null,null,"",44665]
[null,null,null,null,null,"",44665]
[null,null,null,null,null,{"$f":"IF(B1417>=15,\"HORS DELAI\",\"\")","v":""},44665]
[null,null,null,null,null,"",44665]
[null,null,null,null,null,"",44665]
[null,null,null,null,null,"",44665]
[null,null,null,null,null,"",44665]
[null,null,null,null,null,"",44665]
[null,null,null,null,null,"",44665]
[null,null,null,null,null,"",44665]
[null,null,null,null,null,"",44665]
[null,null,null,null,null,"",44665]
[null,null,null,null,null,"",44665]
[null,null,null,null,null,"",44665]
[null,null,null,null,null,"",44665]
[null,null,null,null,null,"",44665]
[null,null,null,null,null,"",44665]
[null,null,null,null,null,"",44665]
[null,null,null,null,null,"",44665]
[null,null,null,null,null,"",44665]
[null,null,null,null,null,"",44665]
[null,null,null,null,null,"",44665]
[null,null,null,null,null,"",44665]
[null,null,null,null,null,"",44665]
[null,null,null,null,null,"",44665]
[null,null,null,null,null,"",44665]
[null,null,null,null,null,"",44665]
[null,null,null,null,null,"",44665]
[null,null,null,null,null,"",44665]
[null,null,null,null,null,"",44665]
[null,null,null,null,null,"",44665]
[null,null,null,null,null,"",44665]
[null,null,null,null,null,"",44665]
[null,null,null,null,null,"",44665]
[null,null,null,null,null,"",44665]
[null,null,null,null,null,"",44665]
[null,null,null,null,null,"",44665]
[null,null,null,null,null,"",44665]
[null,null,null,null,null,"",44665]
[null,null,null,null,null,"",44665]
[null,null,null,null,null,"",44665]
[null,null,null,null,null,"",44665]
[null,null,null,null,null,"",44665]
[null,null,null,null,null,"",44665]
[null,null,null,null,null,"",44665]
[null,null,null,null,null,"",44665]
[null,null,null,null,null,"",44665]
[null,null,null,null,null,"",44665]
[null,null,null,null,null,"",44665]
[null,null,null,null,null,"",44665]
[null,null,null,null,null,"",44665]
[null,null,null,null,null,"",44665]
[null,null,null,null,null,"",44665]
[null,null,null,null,null,"",44665]
[null,null,null,null,null,"",44665]
[null,null,null,null,null,"",44665]
[null,null,null,null,null,"",44665]
[null,null,null,null,null,"",44665]
[null,null,null,null,null,"",44665]
[null,null,null,null,null,"",{"$f":"TODAY()-B1474","v":44665}]
[null,null,null,null,null,"",44665]
[null,null,null,null,null,"",44665]
[null,null,null,null,null,"",44665]
[null,null,null,null,null,"",44665]
[null,null,null,null,null,"",44665]
[null,null,null,null,null,"",44665]
[null,null,null,null,null,{"$f":"IF(B1481>=15,\"HORS DELAI\",\"\")","v":""},44665]
[null,null,null,null,null,"",44665]
[null,null,null,null,null,"",44665]
[null,null,null,null,null,"",44665]
[null,null,null,null,null,"",44665]
[null,null,null,null,null,"",44665]
[null,null,null,null,null,"",44665]
[null,null,null,null,null,"",44665]
[null,null,null,null,null,"",44665]
[null,null,null,null,null,"",44665]
[null,null,null,null,null,"",44665]
[null,null,null,null,null,"",44665]
[null,null,null,null,null,"",44665]
[null,null,null,null,null,"",44665]
[null,null,null,null,null,"",44665]
[null,null,null,null,null,"",44665]
[null,null,null,null,null,"",44665]
[null,null,null,null,null,"",44665]
[null,null,null,null,null,"",44665]
[null,null,null,null,null,"",44665]
[null,null,null,null,null,"",44665]
[null,null,null,null,null,"",44665]
[null,null,null,null,null,"",44665]
[null,null,null,null,null,"",44665]
[null,null,null,null,null,"",44665]
[null,null,null,null,null,"",44665]
[null,null,null,null,null,"",44665]
[null,null,null,null,null,"",44665]
[null,null,null,null,null,"",44665]
[null,null,null,null,null,"",44665]
[null,null,null,null,null,"",44665]
[null,null,null,null,null,"",44665]
[null,null,null,null,null,"",44665]
[null,null,null,null,null,"",44665]
[null,null,null,null,null,"",44665]
[null,null,null,null,null,"",44665]
[null,null,null,null,null,"",44665]
[null,null,null,null,null,"",44665]
[null,null,null,null,null,"",44665]
[null,null,null,null,null,"",44665]
[null,null,null,null,null,"",44665]
[null,null,null,null,null,"",44665]
[null,null,null,null,null,"",44665]
[null,null,null,null,null,"",44665]
[null,null,null,null,null,"",44665]
[null,null,null,null,null,"",44665]
[null,null,null,null,null,"",44665]
[null,null,null,null,null,"",44665]
[null,null,null,null,null,"",44665]
[null,null,null,null,null,"",44665]
[null,null,null,null,null,"",44665]
[null,null,null,null,null,"",44665]
[null,null,null,null,null,"",44665]
[null,null,null,null,null,"",44665]
[null,null,null,null,null,"",44665]
[null,null,null,null,null,"",44665]
[null,null,null,null,null,"",44665]
[null,null,null,null,null,"",{"$f":"TODAY()-B1538","v":44665}]
[null,null,null,null,null,"",44665]
[null,null,null,null,null,"",44665]
[null,null,null,null,null,"",44665]
[null,null,null,null,null,"",44665]
[null,null,null,null,null,"",44665]
[null,null,null,null,null,"",44665]
[null,null,null,null,null,{"$f":"IF(B1545>=15,\"HORS DELAI\",\"\")","v":""},44665]
[null,null,null,null,null,"",44665]
[null,null,null,null,null,"",44665]
[null,null,null,null,null,"",44665]
[null,null,null,null,null,"",44665]
[null,null,null,null,null,"",44665]
[null,null,null,null,null,"",44665]
[null,null,null,null,null,"",44665]
[null,null,null,null,null,"",44665]
[null,null,null,null,null,"",44665]
[null,null,null,null,null,"",44665]
[null,null,null,null,null,"",44665]
[null,null,null,null,null,"",44665]
[null,null,null,null,null,"",44665]
[null,null,null,null,null,"",44665]
[null,null,null,null,null,"",44665]
[null,null,null,null,null,"",44665]
[null,null,null,null,null,"",44665]
[null,null,null,null,null,"",44665]
[null,null,null,null,null,"",44665]
[null,null,null,null,null,"",44665]
[null,null,null,null,null,"",44665]
[null,null,null,null,null,"",44665]
[null,null,null,null,null,"",44665]
[null,null,null,null,null,"",44665]
[null,null,null,null,null,"",44665]
[null,null,null,null,null,"",44665]
[null,null,null,null,null,"",44665]
[null,null,null,null,null,"",44665]
[null,null,null,null,null,"",44665]
[null,null,null,null,null,"",44665]
[null,null,null,null,null,"",44665]
[null,null,null,null,null,"",44665]
[null,null,null,null,null,"",44665]
[null,null,null,null,null,"",44665]
[null,null,null,null,null,"",44665]
[null,null,null,null,null,"",44665]
[null,null,null,null,null,"",44665]
[null,null,null,null,null,"",44665]
[null,null,null,null,null,"",44665]
[null,null,null,null,null,"",44665]
[null,null,null,null,null,"",44665]
[null,null,null,null,null,"",44665]
[null,null,null,null,null,"",44665]
[null,null,null,null,null,"",44665]
[null,null,null,null,null,"",44665]
[null,null,null,null,null,"",44665]
[null,null,null,null,null,"",44665]
[null,null,null,null,null,"",44665]
[null,null,null,null,null,"",44665]
[null,null,null,null,null,"",44665]
[null,null,null,null,null,"",44665]
[null,null,null,null,null,"",44665]
[null,null,null,null,null,"",44665]
[null,null,null,null,null,"",44665]
[null,null,null,null,null,"",44665]
[null,null,null,null,null,"",44665]
[null,null,null,null,null,"",{"$f":"TODAY()-B1602","v":44665}]
[null,null,null,null,null,"",44665]
[null,null,null,null,null,"",44665]
[null,null,null,null,null,"",44665]
[null,null,null,null,null,"",44665]
[null,null,null,null,null,"",44665]
[null,null,null,null,null,"",44665]
[null,null,null,null,null,{"$f":"IF(B1609>=15,\"HORS DELAI\",\"\")","v":""},44665]
[null,null,null,null,null,"",44665]
[null,null,null,null,null,"",44665]
[null,null,null,null,null,"",44665]
[null,null,null,null,null,"",44665]
[null,null,null,null,null,"",44665]
[null,null,null,null,null,"",44665]
[null,null,null,null,null,"",44665]
[null,null,null,null,null,"",44665]
[null,null,null,null,null,"",44665]
[null,null,null,null,null,"",44665]
[null,null,null,null,null,"",44665]
[null,null,null,null,null,"",44665]
[null,null,null,null,null,"",44665]
[null,null,null,null,null,"",44665]
[null,null,null,null,null,"",44665]
[null,null,null,null,null,"",44665]
[null,null,null,null,null,"",44665]
[null,null,null,null,null,"",44665]
[null,null,null,null,null,"",44665]
[null,null,null,null,null,"",44665]
[null,null,null,null,null,"",44665]
[null,null,null,null,null,"",44665]
[null,null,null,null,null,"",44665]
[null,null,null,null,null,"",44665]
[null,null,null,null,null,"",44665]
[null,null,null,null,null,"",44665]
[null,null,null,null,null,"",44665]
[null,null,null,null,null,"",44665]
[null,null,null,null,null,"",44665]
[null,null,null,null,null,"",44665]
[null,null,null,null,null,"",44665]
[null,null,null,null,null,"",44665]
[null,null,null,null,null,"",44665]
[null,null,null,null,null,"",44665]
[null,null,null,null,null,"",44665]
[null,null,null,null,null,"",44665]
[null,null,null,null,null,"",44665]
[null,null,null,null,null,"",44665]
[null,null,null,null,null,"",44665]
[null,null,null,null,null,"",44665]
[null,null,null,null,null,"",44665]
[null,null,null,null,null,"",44665]
[null,null,null,null,null,"",44665]
[null,null,null,null,null,"",44665]
[null,null,null,null,null,"",44665]
[null,null,null,null,null,"",44665]
[null,null,null,null,null,"",44665]
[null,null,null,null,null,"",44665]
[null,null,null,null,null,"",44665]
[null,null,null,null,null,"",44665]
[null,null,null,null,null,"",44665]
[null,null,null,null,null,"",44665]
[null,null,null,null,null,"",44665]
[null,null,null,null,null,"",44665]
[null,null,null,null,null,"",44665]
[null,null,null,null,null,"",44665]
[null,null,null,null,null,"",{"$f":"TODAY()-B1666","v":44665}]
[null,null,null,null,null,"",44665]
[null,null,null,null,null,"",44665]
[null,null,null,null,null,"",44665]
[null,null,null,null,null,"",44665]
[null,null,null,null,null,"",44665]
[null,null,null,null,null,"",44665]
[null,null,null,null,null,{"$f":"IF(B1673>=15,\"HORS DELAI\",\"\")","v":""},44665]
[null,null,null,null,null,"",44665]
[null,null,null,null,null,"",44665]
[null,null,null,null,null,"",44665]
[null,null,null,null,null,"",44665]
[null,null,null,null,null,"",44665]
[null,null,null,null,null,"",44665]
[null,null,null,null,null,"",44665]
[null,null,null,null,null,"",44665]
[null,null,null,null,null,"",44665]
[null,null,null,null,null,"",44665]
[null,null,null,null,null,"",44665]
[null,null,null,null,null,"",44665]
[null,null,null,null,null,"",44665]
[null,null,null,null,null,"",44665]
[null,null,null,null,null,"",44665]
[null,null,null,null,null,"",44665]
[null,null,null,null,null,"",44665]
[null,null,null,null,null,"",44665]
[null,null,null,null,null,"",44665]
[null,null,null,null,null,"",44665]
[null,null,null,null,null,"",44665]
[null,null,null,null,null,"",44665]
[null,null,null,null,null,"",44665]
[null,null,null,null,null,"",44665]
[null,null,null,null,null,"",44665]
[null,null,null,null,null,"",44665]
[null,null,null,null,null,"",44665]
[null,null,null,null,null,"",44665]
[null,null,null,null,null,"",44665]
[null,null,null,null,null,"",44665]
[null,null,null,null,null,"",44665]
[null,null,null,null,null,"",44665]
[null,null,null,null,null,"",44665]
[null,null,null,null,null,"",44665]
[null,null,null,null,null,"",44665]
[null,null,null,null,null,"",44665]
[null,null,null,null,null,"",44665]
[null,null,null,null,null,"",44665]
[null,null,null,null,null,"",44665]
[null,null,null,null,null,"",44665]
[null,null,null,null,null,"",44665]
[null,null,null,null,null,"",44665]
[null,null,null,null,null,"",44665]
[null,null,null,null,null,"",44665]
[null,null,null,null,null,"",44665]
[null,null,null,null,null,"",44665]
[null,null,null,null,null,"",44665]
[null,null,null,null,null,"",44665]
[null,null,null,null,null,"",44665]
[null,null,null,null,null,"",44665]
[null,null,null,null,null,"",44665]
[null,null,null,null,null,"",44665]
[null,null,null,null,null,"",44665]
[null,null,null,null,null,"",44665]
[null,null,null,null,null,"",44665]
[null,null,null,null,null,"",44665]
[null,null,null,null,null,"",{"$f":"TODAY()-B1730","v":44665}]
[null,null,null,null,null,"",44665]
[null,null,null,null,null,"",44665]
[null,null,null,null,null,"",44665]
[null,null,null,null,null,"",44665]
[null,null,null,null,null,"",44665]
[null,null,null,null,null,"",44665]
[null,null,null,null,null,{"$f":"IF(B1737>=15,\"HORS DELAI\",\"\")","v":""},44665]
[null,null,null,null,null,"",44665]
[null,null,null,null,null,"",44665]
[null,null,null,null,null,"",44665]
[null,null,null,null,null,"",44665]
[null,null,null,null,null,"",44665]
[null,null,null,null,null,"",44665]
[null,null,null,null,null,"",44665]
[null,null,null,null,null,"",44665]
[null,null,null,null,null,"",44665]
[null,null,null,null,null,"",44665]
[null,null,null,null,null,"",44665]
[null,null,null,null,null,"",44665]
[null,null,null,null,null,"",44665]
[null,null,null,null,null,"",44665]
[null,null,null,null,null,"",44665]
[null,null,null,null,null,"",44665]
[null,null,null,null,null,"",44665]
[null,null,null,null,null,"",44665]
[null,null,null,null,null,"",44665]
[null,null,null,null,null,"",44665]
[null,null,null,null,null,"",44665]
[null,null,null,null,null,"",44665]
[null,null,null,null,null,"",44665]
[null,null,null,null,null,"",44665]
[null,null,null,null,null,"",44665]
[null,null,null,null,null,"",44665]
[null,null,null,null,null,"",44665]
[null,null,null,null,null,"",44665]
[null,null,null,null,null,"",44665]
[null,null,null,null,null,"",44665]
[null,null,null,null,null,"",44665]
[null,null,null,null,null,"",44665]
[null,null,null,null,null,"",44665]
[null,null,null,null,null,"",44665]
[null,null,null,null,null,"",44665]
[null,null,null,null,null,"",44665]
[null,null,null,null,null,"",44665]
[null,null,null,null,null,"",44665]
[null,null,null,null,null,"",44665]
[null,null,null,null,null,"",44665]
[null,null,null,null,null,"",44665]
[null,null,null,null,null,"",44665]
[null,null,null,null,null,"",44665]
[null,null,null,null,null,"",44665]
[null,null,null,null,null,"",44665]
[null,null,null,null,null,"",44665]
[null,null,null,null,null,"",44665]
[null,null,null,null,null,"",44665]
[null,null,null,null,null,"",44665]
[null,null,null,null,null,"",44665]
[null,null,null,null,null,"",44665]
[null,null,null,null,null,"",44665]
[null,null,null,null,null,"",44665]
[null,null,null,null,null,"",44665]
[null,null,null,null,null,"",44665]
[null,null,null,null,null,"",44665]
[null,null,null,null,null,"",{"$f":"TODAY()-B1794","v":44665}]
[null,null,null,null,null,"",44665]
[null,null,null,null,null,"",44665]
[null,null,null,null,null,"",44665]
[null,null,null,null,null,"",44665]
[null,null,null,null,null,"",44665]
[null,null,null,null,null,"",44665]
[null,null,null,null,null,{"$f":"IF(B1801>=15,\"HORS DELAI\",\"\")","v":""},44665]
[null,null,null,null,null,"",44665]
[null,null,null,null,null,"",44665]
[null,null,null,null,null,"",44665]
[null,null,null,null,null,"",44665]
[null,null,null,null,null,"",44665]
[null,null,null,null,null,"",44665]
[null,null,null,null,null,"",44665]
[null,null,null,null,null,"",44665]
[null,null,null,null,null,"",44665]
[null,null,null,null,null,"",44665]
[null,null,null,null,null,"",44665]
[null,null,null,null,null,"",44665]
[null,null,null,null,null,"",44665]
[null,null,null,null,null,"",44665]
[null,null,null,null,null,"",44665]
[null,null,null,null,null,"",44665]
[null,null,null,null,null,"",44665]
[null,null,null,null,null,"",44665]
[null,null,null,null,null,"",44665]
[null,null,null,null,null,"",44665]
[null,null,null,null,null,"",44665]
[null,null,null,null,null,"",44665]
[null,null,null,null,null,"",44665]
[null,null,null,null,null,"",44665]
[null,null,null,null,null,"",44665]
[null,null,null,null,null,"",44665]
[null,null,null,null,null,"",44665]
[null,null,null,null,null,"",44665]
[null,null,null,null,null,"",44665]
[null,null,null,null,null,"",44665]
[null,null,null,null,null,"",44665]
[null,null,null,null,null,"",44665]
[null,null,null,null,null,"",44665]
[null,null,null,null,null,"",44665]
[null,null,null,null,null,"",44665]
[null,null,null,null,null,"",44665]
[null,null,null,null,null,"",44665]
[null,null,null,null,null,"",44665]
[null,null,null,null,null,"",44665]
[null,null,null,null,null,"",44665]
[null,null,null,null,null,"",44665]
[null,null,null,null,null,"",44665]
[null,null,null,null,null,"",44665]
[null,null,null,null,null,"",44665]
[null,null,null,null,null,"",44665]
[null,null,null,null,null,"",44665]
[null,null,null,null,null,"",44665]
[null,null,null,null,null,"",44665]
[null,null,null,null,null,"",44665]
[null,null,null,null,null,"",44665]
[null,null,null,null,null,"",44665]
[null,null,null,null,null,"",44665]
[null,null,null,null,null,"",44665]
[null,null,null,null,null,"",44665]
[null,null,null,null,null,"",44665]
[null,null,null,null,null,"",44665]
[null,null,null,null,null,"",{"$f":"TODAY()-B1858","v":44665}]
[null,null,null,null,null,"",44665]
[null,null,null,null,null,"",44665]
[null,null,null,null,null,"",44665]
[null,null,null,null,null,"",44665]
[null,null,null,null,null,"",44665]
[null,null,null,null,null,"",44665]
[null,null,null,null,null,{"$f":"IF(B1865>=15,\"HORS DELAI\",\"\")","v":""},44665]
[null,null,null,null,null,"",44665]
[null,null,null,null,null,"",44665]
[null,null,null,null,null,"",44665]
[null,null,null,null,null,"",44665]
[null,null,null,null,null,"",44665]
[null,null,null,null,null,"",44665]
[null,null,null,null,null,"",44665]
[null,null,null,null,null,"",44665]
[null,null,null,null,null,"",44665]
[null,null,null,null,null,"",44665]
[null,null,null,null,null,"",44665]
[null,null,null,null,null,"",44665]
[null,null,null,null,null,"",44665]
[null,null,null,null,null,"",44665]
[null,null,null,null,null,"",44665]
[null,null,null,null,null,"",44665]
[null,null,null,null,null,"",44665]
[null,null,null,null,null,"",44665]
[null,null,null,null,null,"",44665]
[null,null,null,null,null,"",44665]
[null,null,null,null,null,"",44665]
[null,null,null,null,null,"",44665]
[null,null,null,null,null,"",44665]
[null,null,null,null,null,"",44665]
[null,null,null,null,null,"",44665]
[null,null,null,null,null,"",44665]
[null,null,null,null,null,"",44665]
[null,null,null,null,null,"",44665]
[null,null,null,null,null,"",44665]
[null,null,null,null,null,"",44665]
[null,null,null,null,null,"",44665]
[null,null,null,null,null,"",44665]
[null,null,null,null,null,"",44665]
[null,null,null,null,null,"",44665]
[null,null,null,null,null,"",44665]
[null,null,null,null,null,"",44665]
[null,null,null,null,null,"",44665]
[null,null,null,null,null,"",44665]
[null,null,null,null,null,"",44665]
[null,null,null,null,null,"",44665]
[null,null,null,null,null,"",44665]
[null,null,null,null,null,"",44665]
[null,null,null,null,null,"",44665]
[null,null,null,null,null,"",44665]
[null,null,null,null,null,"",44665]
[null,null,null,null,null,"",44665]
[null,null,null,null,null,"",44665]
[null,null,null,null,null,"",44665]
[null,null,null,null,null,"",44665]
[null,null,null,null,null,"",44665]
[null,null,null,null,null,"",44665]
[null,null,null,null,null,"",44665]
[null,null,null,null,null,"",44665]
[null,null,null,null,null,"",44665]
[null,null,null,null,null,"",44665]
[null,null,null,null,null,"",44665]
[null,null,null,null,null,"",{"$f":"TODAY()-B1922","v":44665}]
[null,null,null,null,null,"",44665]
[null,null,null,null,null,"",44665]
[null,null,null,null,null,"",44665]
[null,null,null,null,null,"",44665]
[null,null,null,null,null,"",44665]
[null,null,null,null,null,"",44665]
[null,null,null,null,null,{"$f":"IF(B1929>=15,\"HORS DELAI\",\"\")","v":""},44665]
[null,null,null,null,null,"",44665]
[null,null,null,null,null,"",44665]
[null,null,null,null,null,"",44665]
[null,null,null,null,null,"",44665]
[null,null,null,null,null,"",44665]
[null,null,null,null,null,"",44665]
[null,null,null,null,null,"",44665]
[null,null,null,null,null,"",44665]
[null,null,null,null,null,"",44665]
[null,null,null,null,null,"",44665]
[null,null,null,null,null,"",44665]
[null,null,null,null,null,"",44665]
[null,null,null,null,null,"",44665]
[null,null,null,null,null,"",44665]
[null,null,null,null,null,"",44665]
[null,null,null,null,null,"",44665]
[null,null,null,null,null,"",44665]
[null,null,null,null,null,"",44665]
[null,null,null,null,null,"",44665]
[null,null,null,null,null,"",44665]
[null,null,null,null,null,"",44665]
[null,null,null,null,null,"",44665]
[null,null,null,null,null,"",44665]
[null,null,null,null,null,"",44665]
[null,null,null,null,null,"",44665]
[null,null,null,null,null,"",44665]
[null,null,null,null,null,"",44665]
[null,null,null,null,null,"",44665]
[null,null,null,null,null,"",44665]
[null,null,null,null,null,"",44665]
[null,null,null,null,null,"",44665]
[null,null,null,null,null,"",44665]
[null,null,null,null,null,"",44665]
[null,null,null,null,null,"",44665]
[null,null,null,null,null,"",44665]
[null,null,null,null,null,"",44665]
[null,null,null,null,null,"",44665]
[null,null,null,null,null,"",44665]
[null,null,null,null,null,"",44665]
[null,null,null,null,null,"",44665]
[null,null,null,null,null,"",44665]
[null,null,null,null,null,"",44665]
[null,null,null,null,null,"",44665]
[null,null,null,null,null,"",44665]
[null,null,null,null,null,"",44665]
[null,null,null,null,null,"",44665]
[null,null,null,null,null,"",44665]
[null,null,null,null,null,"",44665]
[null,null,null,null,null,"",44665]
[null,null,null,null,null,"",44665]
[null,null,null,null,null,"",44665]
[null,null,null,null,null,"",44665]
[null,null,null,null,null,"",44665]
[null,null,null,null,null,"",44665]
[null,null,null,null,null,"",44665]
[null,null,null,null,null,"",44665]
[null,null,null,null,null,"",{"$f":"TODAY()-B1986","v":44665}]
[null,null,null,null,null,"",44665]
[null,null,null,null,null,"",44665]
[null,null,null,null,null,"",44665]
[null,null,null,null,null,"",44665]
[null,null,null,null,null,"",44665]
[null,null,null,null,null,"",44665]
[null,null,null,null,null,{"$f":"IF(B1993>=15,\"HORS DELAI\",\"\")","v":""},44665]
[null,null,null,null,null,"",44665]
[null,null,null,null,null,"",44665]
[null,null,null,null,null,"",44665]
[null,null,null,null,null,"",44665]
[null,null,null,null,null,"",44665]
[null,null,null,null,null,"",44665]
[null,null,null,null,null,"",44665]
[null,null,null,null,null,"",44665]
[null,null,null,null,null,"",44665]
[null,null,null,null,null,"",44665]
[null,null,null,null,null,"",44665]
[null,null,null,null,null,"",44665]
[null,null,null,null,null,"",44665]
[null,null,null,null,null,"",44665]
[null,null,null,null,null,"",44665]
[null,null,null,null,null,"",44665]
[null,null,null,null,null,"",44665]
[null,null,null,null,null,"",44665]
[null,null,null,null,null,"",44665]
[null,null,null,null,null,"",44665]
[null,null,null,null,null,"",44665]
[null,null,null,null,null,"",44665]
[null,null,null,null,null,"",44665]
[null,null,null,null,null,"",44665]
[null,null,null,null,null,"",44665]
[null,null,null,null,null,"",44665]
[null,null,null,null,null,"",44665]
[null,null,null,null,null,"",44665]
[null,null,null,null,null,"",44665]
[null,null,null,null,null,"",44665]
[null,null,null,null,null,"",44665]
[null,null,null,null,null,"",44665]
[null,null,null,null,null,"",44665]
[null,null,null,null,null,"",44665]
[null,null,null,null,null,"",44665]
[null,null,null,null,null,"",44665]
[null,null,null,null,null,"",44665]
[null,null,null,null,null,"",44665]
[null,null,null,null,null,"",44665]
[null,null,null,null,null,"",44665]
[null,null,null,null,null,"",44665]
[null,null,null,null,null,"",44665]
[null,null,null,null,null,"",44665]
[null,null,null,null,null,"",44665]
[null,null,null,null,null,"",44665]
[null,null,null,null,null,"",44665]
[null,null,null,null,null,"",44665]
[null,null,null,null,null,"",44665]
[null,null,null,null,null,"",44665]
[null,null,null,null,null,"",44665]
[null,null,null,null,null,"",44665]
[null,null,null,null,null,"",44665]
[null,null,null,null,null,"",44665]
[null,null,null,null,null,"",44665]
[null,null,null,null,null,"",44665]
[null,null,null,null,null,"",44665]
[null,null,null,null,null,"",{"$f":"TODAY()-B2050","v":44665}]
[null,null,null,null,null,"",44665]
[null,null,null,null,null,"",44665]
[null,null,null,null,null,"",44665]
[null,null,null,null,null,"",44665]
[null,null,null,null,null,"",44665]
[null,null,null,null,null,"",44665]
[null,null,null,null,null,{"$f":"IF(B2057>=15,\"HORS DELAI\",\"\")","v":""},44665]
[null,null,null,null,null,"",44665]
[null,null,null,null,null,"",44665]
[null,null,null,null,null,"",44665]
[null,null,null,null,null,"",44665]
[null,null,null,null,null,"",44665]
[null,null,null,null,null,"",44665]
[null,null,null,null,null,"",44665]
[null,null,null,null,null,"",44665]
[null,null,null,null,null,"",44665]
[null,null,null,null,null,"",44665]
[null,null,null,null,null,"",44665]
[null,null,null,null,null,"",44665]
[null,null,null,null,null,"",44665]
[null,null,null,null,null,"",44665]
[null,null,null,null,null,"",44665]
[null,null,null,null,null,"",44665]
[null,null,null,null,null,"",44665]
[null,null,null,null,null,"",44665]
[null,null,null,null,null,"",44665]
[null,null,null,null,null,"",44665]
[null,null,null,null,null,"",44665]
[null,null,null,null,null,"",44665]
[null,null,null,null,null,"",44665]
[null,null,null,null,null,"",44665]
[null,null,null,null,null,"",44665]
[null,null,null,null,null,"",44665]
[null,null,null,null,null,"",44665]
[null,null,null,null,null,"",44665]
[null,null,null,null,null,"",44665]
[null,null,null,null,null,"",44665]
[null,null,null,null,null,"",44665]
[null,null,null,null,null,"",44665]
[null,null,null,null,null,"",44665]
[null,null,null,null,null,"",44665]
[null,null,null,null,null,"",44665]
[null,null,null,null,null,"",44665]
[null,null,null,null,null,"",44665]
[null,null,null,null,null,"",44665]
[null,null,null,null,null,"",44665]
[null,null,null,null,null,"",44665]
[null,null,null,null,null,"",44665]
[null,null,null,null,null,"",44665]
[null,null,null,null,null,"",44665]
[null,null,null,null,null,"",44665]
[null,null,null,null,null,"",44665]
[null,null,null,null,null,"",44665]
[null,null,null,null,null,"",44665]
[null,null,null,null,null,"",44665]
[null,null,null,null,null,"",44665]
[null,null,null,null,null,"",44665]
[null,null,null,null,null,"",44665]
[null,null,null,null,null,"",44665]
[null,null,null,null,null,"",44665]
[null,null,null,null,null,"",44665]
[null,null,null,null,null,"",44665]
[null,null,null,null,null,"",44665]
[null,null,null,null,null,"",{"$f":"TODAY()-B2114","v":44665}]
[null,null,null,null,null,"",44665]
[null,null,null,null,null,"",44665]
[null,null,null,null,null,"",44665]
[null,null,null,null,null,"",44665]
[null,null,null,null,null,"",44665]
[null,null,null,null,null,"",44665]
[null,null,null,null,null,{"$f":"IF(B2121>=15,\"HORS DELAI\",\"\")","v":""},44665]
[null,null,null,null,null,"",44665]
[null,null,null,null,null,"",44665]
[null,null,null,null,null,"",44665]
[null,null,null,null,null,"",44665]
[null,null,null,null,null,"",44665]
[null,null,null,null,null,"",44665]
[null,null,null,null,null,"",44665]
[null,null,null,null,null,"",44665]
[null,null,null,null,null,"",44665]
[null,null,null,null,null,"",44665]
[null,null,null,null,null,"",44665]
[null,null,null,null,null,"",44665]
[null,null,null,null,null,"",44665]
[null,null,null,null,null,"",44665]
[null,null,null,null,null,"",44665]
[null,null,null,null,null,"",44665]
[null,null,null,null,null,"",44665]
[null,null,null,null,null,"",44665]
[null,null,null,null,null,"",44665]
[null,null,null,null,null,"",44665]
[null,null,null,null,null,"",44665]
[null,null,null,null,null,"",44665]
[null,null,null,null,null,"",44665]
[null,null,null,null,null,"",44665]
[null,null,null,null,null,"",44665]
[null,null,null,null,null,"",44665]
[null,null,null,null,null,"",44665]
[null,null,null,null,null,"",44665]
[null,null,null,null,null,"",44665]
[null,null,null,null,null,"",44665]
[null,null,null,null,null,"",44665]
[null,null,null,null,null,"",44665]
[null,null,null,null,null,"",44665]
[null,null,null,null,null,"",44665]
[null,null,null,null,null,"",44665]
[null,null,null,null,null,"",44665]
[null,null,null,null,null,"",44665]
[null,null,null,null,null,"",44665]
[null,null,null,null,null,"",44665]
[null,null,null,null,null,"",44665]
[null,null,null,null,null,"",44665]
[null,null,null,null,null,"",44665]
[null,null,null,null,null,"",44665]
[null,null,null,null,null,"",44665]
[null,null,null,null,null,"",44665]
[null,null,null,null,null,"",44665]
[null,null,null,null,null,"",44665]
[null,null,null,null,null,"",44665]
[null,null,null,null,null,"",44665]
[null,null,null,null,null,"",44665]
[null,null,null,null,null,"",44665]
[null,null,null,null,null,"",44665]
[null,null,null,null,null,"",44665]
[null,null,null,null,null,"",44665]
[null,null,null,null,null,"",44665]
[null,null,null,null,null,"",44665]
[null,null,null,null,null,"",{"$f":"TODAY()-B2178","v":44665}]
[null,null,null,null,null,"",44665]
[null,null,null,null,null,"",44665]
[null,null,null,null,null,"",44665]
[null,null,null,null,null,"",44665]
[null,null,null,null,null,"",44665]
[null,null,null,null,null,"",44665]
[null,null,null,null,null,{"$f":"IF(B2185>=15,\"HORS DELAI\",\"\")","v":""},44665]
[null,null,null,null,null,"",44665]
[null,null,null,null,null,"",44665]
[null,null,null,null,null,"",44665]
[null,null,null,null,null,"",44665]
[null,null,null,null,null,"",44665]
[null,null,null,null,null,"",44665]
[null,null,null,null,null,"",44665]
[null,null,null,null,null,"",44665]
[null,null,null,null,null,"",44665]
[null,null,null,null,null,"",44665]
[null,null,null,null,null,"",44665]
[null,null,null,null,null,"",44665]
[null,null,null,null,null,"",44665]
[null,null,null,null,null,"",44665]
[null,null,null,null,null,"",44665]
[null,null,null,null,null,"",44665]
[null,null,null,null,null,"",44665]
[null,null,null,null,null,"",44665]
[null,null,null,null,null,"",44665]
[null,null,null,null,null,"",44665]
[null,null,null,null,null,"",44665]
[null,null,null,null,null,"",44665]
[null,null,null,null,null,"",44665]
[null,null,null,null,null,"",44665]
[null,null,null,null,null,"",44665]
[null,null,null,null,null,"",44665]
[null,null,null,null,null,"",44665]
[null,null,null,null,null,"",44665]
[null,null,null,null,null,"",44665]
[null,null,null,null,null,"",44665]
[null,null,null,null,null,"",44665]
[null,null,null,null,null,"",44665]
[null,null,null,null,null,"",44665]
[null,null,null,null,null,"",44665]
[null,null,null,null,null,"",44665]
[null,null,null,null,null,"",44665]
[null,null,null,null,null,"",44665]
[null,null,null,null,null,"",44665]
[null,null,null,null,null,"",44665]
[null,null,null,null,null,"",44665]
[null,null,null,null,null,"",44665]
[null,null,null,null,null,"",44665]
[null,null,null,null,null,"",44665]
[null,null,null,null,null,"",44665]
[null,null,null,null,null,"",44665]
[null,null,null,null,null,"",44665]
[null,null,null,null,null,"",44665]
[null,null,null,null,null,"",44665]
[null,null,null,null,null,"",44665]
[null,null,null,null,null,"",44665]
[null,null,null,null,null,"",44665]
[null,null,null,null,null,"",44665]
[null,null,null,null,null,"",44665]
[null,null,null,null,null,"",44665]
[null,null,null,null,null,"",44665]
[null,null,null,null,null,"",44665]
[null,null,null,null,null,"",{"$f":"TODAY()-B2242","v":44665}]
[null,null,null,null,null,"",44665]
[null,null,null,null,null,"",44665]
[null,null,null,null,null,"",44665]
[null,null,null,null,null,"",44665]
[null,null,null,null,null,"",44665]
[null,null,null,null,null,"",44665]
[null,null,null,null,null,{"$f":"IF(B2249>=15,\"HORS DELAI\",\"\")","v":""},44665]
[null,null,null,null,null,"",44665]
[null,null,null,null,null,"",44665]
[null,null,null,null,null,"",44665]
[null,null,null,null,null,"",44665]
[null,null,null,null,null,"",44665]
[null,null,null,null,null,"",44665]
[null,null,null,null,null,"",44665]
[null,null,null,null,null,"",44665]
[null,null,null,null,null,"",44665]
[null,null,null,null,null,"",44665]
[null,null,null,null,null,"",44665]
[null,null,null,null,null,"",44665]
[null,null,null,null,null,"",44665]
[null,null,null,null,null,"",44665]
[null,null,null,null,null,"",44665]
[null,null,null,null,null,"",44665]
[null,null,null,null,null,"",44665]
[null,null,null,null,null,"",44665]
[null,null,null,null,null,"",44665]
[null,null,null,null,null,"",44665]
[null,null,null,null,null,"",44665]
[null,null,null,null,null,"",44665]
[null,null,null,null,null,"",44665]
[null,null,null,null,null,"",44665]
[null,null,null,null,null,"",44665]
[null,null,null,null,null,"",44665]
[null,null,null,null,null,"",44665]
[null,null,null,null,null,"",44665]
[null,null,null,null,null,"",44665]
[null,null,null,null,null,"",44665]
[null,null,null,null,null,"",44665]
[null,null,null,null,null,"",44665]
[null,null,null,null,null,"",44665]
[null,null,null,null,null,"",44665]
[null,null,null,null,null,"",44665]
[null,null,null,null,null,"",44665]
[null,null,null,null,null,"",44665]
[null,null,null,null,null,"",44665]
[null,null,null,null,null,"",44665]
[null,null,null,null,null,"",44665]
[null,null,null,null,null,"",44665]
[null,null,null,null,null,"",44665]
[null,null,null,null,null,"",44665]
[null,null,null,null,null,"",44665]
[null,null,null,null,null,"",44665]
[null,null,null,null,null,"",44665]
[null,null,null,null,null,"",44665]
[null,null,null,null,null,"",44665]
[null,null,null,null,null,"",44665]
[null,null,null,null,null,"",44665]
[null,null,null,null,null,"",44665]
[null,null,null,null,null,"",44665]
[null,null,null,null,null,"",44665]
[null,null,null,null,null,"",44665]
[null,null,null,null,null,"",44665]
[null,null,null,null,null,"",44665]
[null,null,null,null,null,"",{"$f":"TODAY()-B2306","v":44665}]
[null,null,null,null,null,"",44665]
[null,null,null,null,null,"",44665]
[null,null,null,null,null,"",44665]
[null,null,null,null,null,"",44665]
[null,null,null,null,null,"",44665]
[null,null,null,null,null,"",44665]
[null,null,null,null,null,{"$f":"IF(B2313>=15,\"HORS DELAI\",\"\")","v":""},44665]
[null,null,null,null,null,"",44665]
[null,null,null,null,null,"",44665]
[null,null,null,null,null,"",44665]
[null,null,null,null,null,"",44665]
[null,null,null,null,null,"",44665]
[null,null,null,null,null,"",44665]
[null,null,null,null,null,"",44665]
[null,null,null,null,null,"",44665]
[null,null,null,null,null,"",44665]
[null,null,null,null,null,"",44665]
[null,null,null,null,null,"",44665]
[null,null,null,null,null,"",44665]
[null,null,null,null,null,"",44665]
[null,null,null,null,null,"",44665]
[null,null,null,null,null,"",44665]
[null,null,null,null,null,"",44665]
[null,null,null,null,null,"",44665]
[null,null,null,null,null,"",44665]
[null,null,null,null,null,"",44665]
[null,null,null,null,null,"",44665]
[null,null,null,null,null,"",44665]
[null,null,null,null,null,"",44665]
[null,null,null,null,null,"",44665]
[null,null,null,null,null,"",44665]
[null,null,null,null,null,"",44665]
[null,null,null,null,null,"",44665]
[null,null,null,null,null,"",44665]
[null,null,null,null,null,"",44665]
[null,null,null,null,null,"",44665]
[null,null,null,null,null,"",44665]
[null,null,null,null,null,"",44665]
[null,null,null,null,null,"",44665]
[null,null,null,null,null,"",44665]
[null,null,null,null,null,"",44665]
[null,null,null,null,null,"",44665]
[null,null,null,null,null,"",44665]
[null,null,null,null,null,"",44665]
[null,null,null,null,null,"",44665]
[null,null,null,null,null,"",44665]
[null,null,null,null,null,"",44665]
[null,null,null,null,null,"",44665]
[null,null,null,null,null,"",44665]
[null,null,null,null,null,"",44665]
[null,null,null,null,null,"",44665]
[null,null,null,null,null,"",44665]
[null,null,null,null,null,"",44665]
[null,null,null,null,null,"",44665]
[null,null,null,null,null,"",44665]
[null,null,null,null,null,"",44665]
[null,null,null,null,null,"",44665]
[null,null,null,null,null,"",44665]
[null,null,null,null,null,"",44665]
[null,null,null,null,null,"",44665]
[null,null,null,null,null,"",44665]
[null,null,null,null,null,"",44665]
[null,null,null,null,null,"",44665]
[null,null,null,null,null,"",{"$f":"TODAY()-B2370","v":44665}]
[null,null,null,null,null,"",44665]
[null,null,null,null,null,"",44665]
[null,null,null,null,null,"",44665]
[null,null,null,null,null,"",44665]
[null,null,null,null,null,"",44665]
[null,null,null,null,null,"",44665]
[null,null,null,null,null,{"$f":"IF(B2377>=15,\"HORS DELAI\",\"\")","v":""},44665]
[null,null,null,null,null,"",44665]
[null,null,null,null,null,"",44665]
[null,null,null,null,null,"",44665]
[null,null,null,null,null,"",44665]
[null,null,null,null,null,"",44665]
[null,null,null,null,null,"",44665]
[null,null,null,null,null,"",44665]
[null,null,null,null,null,"",44665]
[null,null,null,null,null,"",44665]
[null,null,null,null,null,"",44665]
[null,null,null,null,null,"",44665]
[null,null,null,null,null,"",44665]
[null,null,null,null,null,"",44665]
[null,null,null,null,null,"",44665]
[null,null,null,null,null,"",44665]
[null,null,null,null,null,"",44665]
[null,null,null,null,null,"",44665]
[null,null,null,null,null,"",44665]
[null,null,null,null,null,"",44665]
[null,null,null,null,null,"",44665]
[null,null,null,null,null,"",44665]
[null,null,null,null,null,"",44665]
[null,null,null,null,null,"",44665]
[null,null,null,null,null,"",44665]
[null,null,null,null,null,"",44665]
[null,null,null,null,null,"",44665]
[null,null,null,null,null,"",44665]
[null,null,null,null,null,"",44665]
[null,null,null,null,null,"",44665]
[null,null,null,null,null,"",44665]
[null,null,null,null,null,"",44665]
[null,null,null,null,null,"",44665]
[null,null,null,null,null,"",44665]
[null,null,null,null,null,"",44665]
[null,null,null,null,null,"",44665]
[null,null,null,null,null,"",44665]
[null,null,null,null,null,"",44665]
[null,null,null,null,null,"",44665]
[null,null,null,null,null,"",44665]
[null,null,null,null,null,"",44665]
[null,null,null,null,null,"",44665]
[null,null,null,null,null,"",44665]
[null,null,null,null,null,"",44665]
[null,null,null,null,null,"",44665]
[null,null,null,null,null,"",44665]
[null,null,null,null,null,"",44665]
[null,null,null,null,null,"",44665]
[null,null,null,null,null,"",44665]
[null,null,null,null,null,"",44665]
[null,null,null,null,null,"",44665]
[null,null,null,null,null,"",44665]
[null,null,null,null,null,"",44665]
[null,null,null,null,null,"",44665]
[null,null,null,null,null,"",44665]
[null,null,null,null,null,"",44665]
[null,null,null,null,null,"",44665]
[null,null,null,null,null,"",{"$f":"TODAY()-B2434","v":44665}]
[null,null,null,null,null,"",44665]
[null,null,null,null,null,"",44665]
[null,null,null,null,null,"",44665]
[null,null,null,null,null,"",44665]
[null,null,null,null,null,"",44665]
[null,null,null,null,null,"",44665]
[null,null,null,null,null,{"$f":"IF(B2441>=15,\"HORS DELAI\",\"\")","v":""},44665]
[null,null,null,null,null,"",44665]
[null,null,null,null,null,"",44665]
[null,null,null,null,null,"",44665]
[null,null,null,null,null,"",44665]
[null,null,null,null,null,"",44665]
[null,null,null,null,null,"",44665]
[null,null,null,null,null,"",44665]
[null,null,null,null,null,"",44665]
[null,null,null,null,null,"",44665]
[null,null,null,null,null,"",44665]
[null,null,null,null,null,"",44665]
[null,null,null,null,null,"",44665]
[null,null,null,null,null,"",44665]
[null,null,null,null,null,"",44665]
[null,null,null,null,null,"",44665]
[null,null,null,null,null,"",44665]
[null,null,null,null,null,"",44665]
[null,null,null,null,null,"",44665]
[null,null,null,null,null,"",44665]
[null,null,null,null,null,"",44665]
[null,null,null,null,null,"",44665]
[null,null,null,null,null,"",44665]
[null,null,null,null,null,"",44665]
[null,null,null,null,null,"",44665]
[null,null,null,null,null,"",44665]
[null,null,null,null,null,"",44665]
[null,null,null,null,null,"",44665]
[null,null,null,null,null,"",44665]
[null,null,null,null,null,"",44665]
[null,null,null,null,null,"",44665]
[null,null,null,null,null,"",44665]
[null,null,null,null,null,"",44665]
[null,null,null,null,null,"",44665]
[null,null,null,null,null,"",44665]
[null,null,null,null,null,"",44665]
[null,null,null,null,null,"",44665]
[null,null,null,null,null,"",44665]
[null,null,null,null,null,"",44665]
[null,null,null,null,null,"",44665]
[null,null,null,null,null,"",44665]
[null,null,null,null,null,"",44665]
[null,null,null,null,null,"",44665]
[null,null,null,null,null,"",44665]
[null,null,null,null,null,"",44665]
[null,null,null,null,null,"",44665]
[null,null,null,null,null,"",44665]
[null,null,null,null,null,"",44665]
[null,null,null,null,null,"",44665]
[null,null,null,null,null,"",44665]
[null,null,null,null,null,"",44665]
[null,null,null,null,null,"",44665]
[null,null,null,null,null,"",44665]
[null,null,null,null,null,"",44665]
[null,null,null,null,null,"",44665]
[null,null,null,null,null,"",44665]
[null,null,null,null,null,"",44665]
[null,null,null,null,null,"",{"$f":"TODAY()-B2498","v":44665}]
[null,null,null,null,null,"",44665]
[null,null,null,null,null,"",44665]
[null,null,null,null,null,"",44665]
[null,null,null,null,null,"",44665]
[null,null,null,null,null,"",44665]
[null,null,null,null,null,"",44665]
[null,null,null,null,null,{"$f":"IF(B2505>=15,\"HORS DELAI\",\"\")","v":""},44665]
[null,null,null,null,null,"",44665]
[null,null,null,null,null,"",44665]
[null,null,null,null,null,"",44665]
[null,null,null,null,null,"",44665]
[null,null,null,null,null,"",44665]
[null,null,null,null,null,"",44665]
[null,null,null,null,null,"",44665]
[null,null,null,null,null,"",44665]
[null,null,null,null,null,"",44665]
[null,null,null,null,null,"",44665]
[null,null,null,null,null,"",44665]
[null,null,null,null,null,"",44665]
[null,null,null,null,null,"",44665]
[null,null,null,null,null,"",44665]
[null,null,null,null,null,"",44665]
[null,null,null,null,null,"",44665]
[null,null,null,null,null,"",44665]
[null,null,null,null,null,"",44665]
[null,null,null,null,null,"",44665]
[null,null,null,null,null,"",44665]
[null,null,null,null,null,"",44665]
[null,null,null,null,null,"",44665]
[null,null,null,null,null,"",44665]
[null,null,null,null,null,"",44665]
[null,null,null,null,null,"",44665]
[null,null,null,null,null,"",44665]
[null,null,null,null,null,"",44665]
[null,null,null,null,null,"",44665]
[null,null,null,null,null,"",44665]
[null,null,null,null,null,"",44665]
[null,null,null,null,null,"",44665]
[null,null,null,null,null,"",44665]
[null,null,null,null,null,"",44665]
[null,null,null,null,null,"",44665]
[null,null,null,null,null,"",44665]
[null,null,null,null,null,"",44665]
[null,null,null,null,null,"",44665]
[null,null,null,null,null,"",44665]
[null,null,null,null,null,"",44665]
[null,null,null,null,null,"",44665]
[null,null,null,null,null,"",44665]
[null,null,null,null,null,"",44665]
[null,null,null,null,null,"",44665]
[null,null,null,null,null,"",44665]
[null,null,null,null,null,"",44665]
[null,null,null,null,null,"",44665]
[null,null,null,null,null,"",44665]
[null,null,null,null,null,"",44665]
[null,null,null,null,null,"",44665]
[null,null,null,null,null,"",44665]
[null,null,null,null,null,"",44665]
[null,null,null,null,null,"",44665]
[null,null,null,null,null,"",44665]
[null,null,null,null,null,"",44665]
[null,null,null,null,null,"",44665]
[null,null,null,null,null,"",44665]
[null,null,null,null,null,"",{"$f":"TODAY()-B2562","v":44665}]
[null,null,null,null,null,"",44665]
[null,null,null,null,null,"",44665]
[null,null,null,null,null,"",44665]
[null,null,null,null,null,"",44665]
[null,null,null,null,null,"",44665]
[null,null,null,null,null,"",44665]
[null,null,null,null,null,{"$f":"IF(B2569>=15,\"HORS DELAI\",\"\")","v":""},44665]
[null,null,null,null,null,"",44665]
[null,null,null,null,null,"",44665]
[null,null,null,null,null,"",44665]
[null,null,null,null,null,"",44665]
[null,null,null,null,null,"",44665]
[null,null,null,null,null,"",44665]
[null,null,null,null,null,"",44665]
[null,null,null,null,null,"",44665]
[null,null,null,null,null,"",44665]
[null,null,null,null,null,"",44665]
[null,null,null,null,null,"",44665]
[null,null,null,null,null,"",44665]
[null,null,null,null,null,"",44665]
[null,null,null,null,null,"",44665]
[null,null,null,null,null,"",44665]
[null,null,null,null,null,"",44665]
[null,null,null,null,null,"",44665]
[null,null,null,null,null,"",44665]
[null,null,null,null,null,"",44665]
[null,null,null,null,null,"",44665]
[null,null,null,null,null,"",44665]
[null,null,null,null,null,"",44665]
[null,null,null,null,null,"",44665]
[null,null,null,null,null,"",44665]
[null,null,null,null,null,"",44665]
[null,null,null,null,null,"",44665]
[null,null,null,null,null,"",44665]
[null,null,null,null,null,"",44665]
[null,null,null,null,null,"",44665]
[null,null,null,null,null,"",44665]
[null,null,null,null,null,"",44665]
[null,null,null,null,null,"",44665]
[null,null,null,null,null,"",44665]
[null,null,null,null,null,"",44665]
[null,null,null,null,null,"",44665]
[null,null,null,null,null,"",44665]
[null,null,null,null,null,"",44665]
[null,null,null,null,null,"",44665]
[null,null,null,null,null,"",44665]
[null,null,null,null,null,"",44665]
[null,null,null,null,null,"",44665]
[null,null,null,null,null,"",44665]
[null,null,null,null,null,"",44665]
[null,null,null,null,null,"",44665]
[null,null,null,null,null,"",44665]
[null,null,null,null,null,"",44665]
[null,null,null,null,null,"",44665]
[null,null,null,null,null,"",44665]
[null,null,null,null,null,"",44665]
[null,null,null,null,null,"",44665]
[null,null,null,null,null,"",44665]
[null,null,null,null,null,"",44665]
[null,null,null,null,null,"",44665]
[null,null,null,null,null,"",44665]
[null,null,null,null,null,"",44665]
[null,null,null,null,null,"",44665]
[null,null,null,null,null,"",{"$f":"TODAY()-B2626","v":44665}]
[null,null,null,null,null,"",44665]
[null,null,null,null,null,"",44665]
[null,null,null,null,null,"",44665]
[null,null,null,null,null,"",44665]
[null,null,null,null,null,"",44665]
[null,null,null,null,null,"",44665]
[null,null,null,null,null,{"$f":"IF(B2633>=15,\"HORS DELAI\",\"\")","v":""},44665]
[null,null,null,null,null,"",44665]
[null,null,null,null,null,"",44665]
[null,null,null,null,null,"",44665]
[null,null,null,null,null,"",44665]
[null,null,null,null,null,"",44665]
[null,null,null,null,null,"",44665]
[null,null,null,null,null,"",44665]
[null,null,null,null,null,"",44665]
[null,null,null,null,null,"",44665]
[null,null,null,null,null,"",44665]
[null,null,null,null,null,"",44665]
[null,null,null,null,null,"",44665]
[null,null,null,null,null,"",44665]
[null,null,null,null,null,"",44665]
[null,null,null,null,null,"",44665]
[null,null,null,null,null,"",44665]
[null,null,null,null,null,"",44665]
[null,null,null,null,null,"",44665]
[null,null,null,null,null,"",44665]
[null,null,null,null,null,"",44665]
[null,null,null,null,null,"",44665]
[null,null,null,null,null,"",44665]
[null,null,null,null,null,"",44665]
[null,null,null,null,null,"",44665]
[null,null,null,null,null,"",44665]
[null,null,null,null,null,"",44665]
[null,null,null,null,null,"",44665]
[null,null,null,null,null,"",44665]
[null,null,null,null,null,"",44665]
[null,null,null,null,null,"",44665]
[null,null,null,null,null,"",44665]
[null,null,null,null,null,"",44665]
[null,null,null,null,null,"",44665]
[null,null,null,null,null,"",44665]
[null,null,null,null,null,"",44665]
[null,null,null,null,null,"",44665]
[null,null,null,null,null,"",44665]
[null,null,null,null,null,"",44665]
[null,null,null,null,null,"",44665]
[null,null,null,null,null,"",44665]
[null,null,null,null,null,"",44665]
[null,null,null,null,null,"",44665]
[null,null,null,null,null,"",44665]
[null,null,null,null,null,"",44665]
[null,null,null,null,null,"",44665]
[null,null,null,null,null,"",44665]
[null,null,null,null,null,"",44665]
[null,null,null,null,null,"",44665]
[null,null,null,null,null,"",44665]
[null,null,null,null,null,"",44665]
[null,null,null,null,null,"",44665]
[null,null,null,null,null,"",44665]
[null,null,null,null,null,"",44665]
[null,null,null,null,null,"",44665]
[null,null,null,null,null,"",44665]
[null,null,null,null,null,"",44665]
[null,null,null,null,null,"",{"$f":"TODAY()-B2690","v":44665}]
[null,null,null,null,null,"",44665]
[null,null,null,null,null,"",44665]
[null,null,null,null,null,"",44665]
[null,null,null,null,null,"",44665]
[null,null,null,null,null,"",44665]
[null,null,null,null,null,"",44665]
[null,null,null,null,null,{"$f":"IF(B2697>=15,\"HORS DELAI\",\"\")","v":""},44665]
[null,null,null,null,null,"",44665]
[null,null,null,null,null,"",44665]
[null,null,null,null,null,"",44665]
[null,null,null,null,null,"",44665]
[null,null,null,null,null,"",44665]
[null,null,null,null,null,"",44665]
[null,null,null,null,null,"",44665]
[null,null,null,null,null,"",44665]
[null,null,null,null,null,"",44665]
[null,null,null,null,null,"",44665]
[null,null,null,null,null,"",44665]
[null,null,null,null,null,"",44665]
[null,null,null,null,null,"",44665]
[null,null,null,null,null,"",44665]
[null,null,null,null,null,"",44665]
[null,null,null,null,null,"",44665]
[null,null,null,null,null,"",44665]
[null,null,null,null,null,"",44665]
[null,null,null,null,null,"",44665]
[null,null,null,null,null,"",44665]
[null,null,null,null,null,"",44665]
[null,null,null,null,null,"",44665]
[null,null,null,null,null,"",44665]
[null,null,null,null,null,"",44665]
[null,null,null,null,null,"",44665]
[null,null,null,null,null,"",44665]
[null,null,null,null,null,"",44665]
[null,null,null,null,null,"",44665]
[null,null,null,null,null,"",44665]
[null,null,null,null,null,"",44665]
[null,null,null,null,null,"",44665]
[null,null,null,null,null,"",44665]
[null,null,null,null,null,"",44665]
[null,null,null,null,null,"",44665]
[null,null,null,null,null,"",44665]
[null,null,null,null,null,"",44665]
[null,null,null,null,null,"",44665]
[null,null,null,null,null,"",44665]
[null,null,null,null,null,"",44665]
[null,null,null,null,null,"",44665]
[null,null,null,null,null,"",44665]
[null,null,null,null,null,"",44665]
[null,null,null,null,null,"",44665]
[null,null,null,null,null,"",44665]
[null,null,null,null,null,"",44665]
[null,null,null,null,null,"",44665]
[null,null,null,null,null,"",44665]
[null,null,null,null,null,"",44665]
[null,null,null,null,null,"",44665]
[null,null,null,null,null,"",44665]
[null,null,null,null,null,"",44665]
[null,null,null,null,null,"",44665]
[null,null,null,null,null,"",44665]
[null,null,null,null,null,"",44665]
[null,null,null,null,null,"",44665]
[null,null,null,null,null,"",44665]
[null,null,null,null,null,""]
[null,null,null,null,null,""]
[null,null,null,null,null,""]
[null,null,null,null,null,""]
[null,null,null,null,null,""]
[null,null,null,null,null,""]
[null,null,null,null,null,""]
[null,null,null,null,null,""]
[null,null,null,null,null,""]
[null,null,null,null,null,""]